Workbook

Sheet Report Generator
B5: This macro is provided free of charge "as is" to assist users in interpreting data from the Metsys Current Logger.
B6: No warranties, either express or implied, are made regarding this macro, including but not limited to, warranties of fitness for any particular purpose.
B7: Users are solely responsible for any decisions based on the reports generated by this macro.
B8: GMC-I PROSyS Ltd. shall not be liable for any loss or damage, however caused, resulting from the use of this macro.

Sheet Report (hidden)
B1: BB1
B3: Start Time | C3: 2024-04-23T09:35:00 | H3: Location | I3: Bull's Head
B4: End Time | C4: 2024-04-30T15:15:34
B5: Duration | D5: 7.239977 | F5: hours
B6: Log Interval | D6: 5 | F6: minutes
H7: Circuit Desc. | I7: panel 1
H8: Applicable regs. | I8: BS
H9: No. of Poles | I9: 3
B10: Readings | D10: 2085 | H10: Source | I10: 240423-Bulls_00013_240423_0935.csv
B35: Current Rating | I35: 100 | J35: A
B36: 90% of Rating (40C) | I36: 90 | J36: A | L36: based on highest loaded phase
B37: Nominal Voltage | I37: 240 | J37: V
I38: phase
A39: Connected Current Demand Study | I39: A | J39: B | K39: C
B40: Current Demand (CD) | I40: =ia_peak -> 27 | J40: =ib_peak -> 28 | K40: =ic_peak -> 42 | L40: =MAX(I40:K40) -> 42 | M40: A
B41: Maximum Apparent Power | I41: =I40*$I37/1000 -> 6.48 | J41: =J40*$I37/1000 -> 6.72 | K41: =K40*$I37/1000 -> 10.08 | L41: =MAX(I41:K41) -> 10.08 | M41: kVA
B42: Maximum Demand (load) | I42: =SUM(I41:K41) -> 23.28 | M42: kVA
B43: Seasonal Adjustments | I43: =IF(seasonal_en,seasonal_adjust,0) -> 0 | M43: A
B44: Total Current Demand | I44: =I40+$I43 -> 27 | J44: =J40+$I43 -> 28 | K44: 42 | L44: =MAX(I44:K44) -> 42 | M44: A
B45: Available Capacity | I45: =$I35-report_connected_load_a -> 73 | J45: =$I35-report_connected_load_b -> 72 | K45: =$I35-report_connected_load_c -> 58 | L45: =MIN(I45:K45) -> 58 | M45: A
B46: Free Capacity | I46: =nv*SUM(I45:K45)/1000 -> 48.72 | M46: kVA
A47: Plan/Projected Current Demand Analysis
B48: Planned Additional Current Demand | I48: =IF(planned_load_en,planned_load,0) -> 0 | M48: A
B49: Projected Current Demand w/addition | I49: =report_connected_load_a+$I48 -> 27 | J49: =report_connected_load_b+$I48 -> 28 | K49: =report_connected_load_c+$I48 -> 42 | L49: =MAX(I49:K49) -> 42 | M49: A
B50: Projected Remaining Capacity | I50: =pcbr-I49 -> 73 | J50: =pcbr-J49 -> 72 | K50: =pcbr-K49 -> 58 | L50: =MIN(I50:K50) -> 58 | M50: A
A52: =MID(CELL("filename"),SEARCH("[",CELL("filename"))+1, SEARCH("]",CELL("filename"))-SEARCH("[",CELL("filename"))-1) -> maximum_demand_report_generator_01_05.xlsm | L52: 2017-07-01T00:06:32

Sheet Control (hidden)
B5: Report Generator Mode | C5: 1 | F5: 0 - RG, 1 - NEC
B6: Rolling Data Present | C6: FALSE
B7: Step | C7: 1
B8: Title
B9: Job ID
B11: Location | F11: Circuit Description
F12: Standard
F13: No. of Poles | G13: 1
B16: Type | C16: 0
B17: Phase Colours | C17: 2 | F17: NB. 2 = (black, red, blue). This cannot currently be changed in NEC mode
B19: Log File Name | C19: <none>
B20: Start Time | C20: 2024-04-23T09:35:00
B21: End Time | C21: 2024-04-30T15:15:34
B22: Duration | C22: 7.239977 | D22: hours
B23: Readings | C23: 2085
B24: Phases | C24: 3
B25: Log Interval | C25: 5 | D25: minutes
B27: Chart Start | C27: =FLOOR(start_time*24, 1)/24 -> 2024-04-23T09:00:00 | F27: =chart_start -> 45405.375
B28: Chart End | C28: =CEILING(end_time*24, 1)/24 -> 2024-04-30T16:00:00 | F28: =chart_end -> 45412.66667
B29: Chart Duration (days) | C29: =chart_end-chart_start -> 7.291666667 | D29: hours | F29: 17520 | G29: 8760 | H29: 2184 | I29: 720 | J29: 168 | K29: 48 | L29: 24 | M29: 12 | N29: 6 | O29: 2 | P29: 1 | Q29: hours
B30: Calculated Grid (days) | C30: =C29/4 -> 1.822916667 | F30: =F29/24 -> 730 | G30: 365 | H30: =H29/24 -> 91 | I30: 30 | J30: =J29/24 -> 7 | K30: 2 | L30: 1 | M30: 0.5 | N30: 0.25 | O30: 0.08333333333 | P30: 0.04166666667 | Q30: days
B31: Next Larger Grid (days) | C31: =INDEX(H30:P30,MATCH(C30,H30:P30,-1)) -> 2
C33: Title | D33: Selection
B34: No. of charts | C34: 3
A35: 1 | B35: Chart1 | C35: Phase A | D35: 4353 | F35: Limit1 | G35: 0
A36: 2 | B36: Chart2 | C36: Phase B | D36: 8706 | F36: Limit2 | G36: 0
A37: 3 | B37: Chart3 | C37: Phase C | D37: 17412
A38: 4 | B38: Chart4 | D38: 0
B40: Note
C42: Header Left | D42: Header Right
B43: mode | C43: 1 | D43: 1
B44: name
C46: Footer Left | D46: Footer Right
B47: mode | C47: 1 | D47: 1
B48: text
B50: Report Dir
B51: Report File Name
B53: NEC Settings
B55: Current Rating | C55: 200
B56: Nominal Voltage | C56: 230 | G56: Percent | H56: Temperature | J56: ComboBox | L56: Line desc | O56: Chart Legend
B57: Temp Rating Index (ListIndex) | C57: 1 | G57: =INDEX(G$59:G$62,temp_rating_index+1) -> 90 | L57: =INDEX(L$59:L$62,temp_rating_index+1) -> 90% of Rating (40C) | O57: =INDEX(O$59:O$62,temp_rating_index+1) -> 90% line (40C)
B58: Phase Selection | C58: 4
B59: Adjustment Factor | C59: =seasonal_adjust -> 0 | G59: 100 | H59: <40 | J59: =$H59&"C ("&$G59&"%)" -> <40C (100%) | L59: =$G59 & "% of Rating (" &$H59& "C)" -> 100% of Rating (<40C) | O59: =$G59 & "% line (" &$H59& "C)" -> 100% line (<40C)
B60: Additional non-operating Load | C60: 0 | D60: 0 | G60: 90 | H60: 40 | J60: =$H60&"C ("&$G60&"%)" -> 40C (90%) | L60: =$G60 & "% of Rating (" &$H60& "C)" -> 90% of Rating (40C) | O60: =$G60 & "% line (" &$H60& "C)" -> 90% line (40C)
B61: Planned (Additional) Load | C61: =planned_load -> 0 | D61: =planned_load_en -> 0 | G61: 80 | H61: 50 | J61: 50C (80%) | L61: =$G61 & "% of Rating (" &$H61& "C)" -> 80% of Rating (50C) | O61: =$G61 & "% line (" &$H61& "C)" -> 80% line (50C)
B62: Seasonal | C62: =seasonal_adjust -> 0 | D62: =seasonal_en -> 0 | G62: 70 | H62: 60 | J62: 60C (70%) | L62: =$G62 & "% of Rating (" &$H62& "C)" -> 70% of Rating (60C) | O62: =$G62 & "% line (" &$H62& "C)" -> 70% line (60C)

Sheet Report Template (hidden)
B1: Sample Report
B3: Job ID | H3: Location | I3: 1 Potter Place, West Pimbo, Skelmersdale, Lancashire, WN8 9PH, UK
B4: Start Time | C4: 2017-07-01T00:06:32
B5: End Time | C5: 2017-07-03T23:56:32 | H5: Source
B6: Duration | D6: 3 | F6: hours | H6: Type | I6: pre-install
B7: Log Interval | D7: 10 | F7: minutes | H7: Phases | I7: 4
H8: Readings | I8: 432
B10: Survey carried out over 3 days prior to installation of new equipment.
B11: 3hr Maximum Continuous Load
C12: A | D12: B | F12: C | H12: N
C13: 0 | D13: 0 | F13: 0 | H13: 0
O21: Max | Z21: Max
O22: Mean | Z22: Mean
O23: Min | Z23: Min
O24: Median | Z24: Median
O25: Stdev | Z25: Stdev
B36: Max
B37: Mean
B38: Min
B39: Median
B40: Stdev
O47: Max
O48: Mean
O49: Min
O50: Median
A51: =MID(CELL("filename"),SEARCH("[",CELL("filename"))+1, SEARCH("]",CELL("filename"))-SEARCH("[",CELL("filename"))-1) -> maximum_demand_report_generator_01_05.xlsm | L51: 2017-07-01T00:06:32 | O51: Stdev

Sheet Preview (hidden)

Sheet NEC Report Template (hidden)
B1: Sample Report
B3: Start Time | C3: 2017-07-01T00:06:32 | H3: Location | I3: 1 Potter Place, West Pimbo, Skelmersdale, Lancashire, WN8 9PH, UK
B4: End Time | C4: 2017-07-03T23:56:32
B5: Duration | D5: 3 | F5: hours
B6: Log Interval | D6: 10 | F6: minutes
H7: Circuit Desc.
H8: Applicable regs.
H9: No. of Poles
B10: Readings | D10: 432 | H10: Source
B35: Current Rating | I35: =panel_capacity -> 200 | J35: A
B36: =sd_temp_rating_desc -> 90% of Rating (40C) | I36: =0.8*I35 -> 160 | J36: A | L36: based on highest loaded phase
B37: Nominal Voltage | I37: =nominal_voltage -> 230 | J37: V
I38: phase
A39: Connected Current Demand Study | I39: A | J39: B | K39: C
B40: Current Demand (CD) | I40: =ia_peak -> 27 | J40: =ib_peak -> 28 | K40: =ic_peak -> 42 | L40: =MAX(I40:K40) -> 42 | M40: A
B41: Maximum Apparent Power | I41: =I40*$I37/1000 -> 6.21 | J41: =J40*$I37/1000 -> 6.44 | K41: =K40*$I37/1000 -> 9.66 | L41: =MAX(I41:K41) -> 9.66 | M41: kVA
B42: Maximum Demand (load) | I42: =SUM(I41:K41) -> 22.31 | M42: kVA
B43: Seasonal Adjustments | I43: =IF(seasonal_en,seasonal_adjust,0) -> 0 | M43: A
B44: Total Current Demand | I44: =I40+$I43 -> 27 | J44: =J40+$I43 -> 28 | K44: 42 | L44: =MAX(I44:K44) -> 42 | M44: A
B45: Available Capacity | I45: =$I35-report_connected_load_a -> 173 | J45: =$I35-report_connected_load_b -> 172 | K45: =$I35-report_connected_load_c -> 158 | L45: =MIN(I45:K45) -> 158 | M45: A
B46: Free Capacity | I46: =nv*SUM(I45:K45)/1000 -> 115.69 | M46: kVA
A47: Plan/Projected Current Demand Analysis
B48: Planned Additional Current Demand | I48: =IF(planned_load_en,planned_load,0) -> 0 | M48: A
B49: Projected Current Demand w/addition | I49: =report_connected_load_a+$I48 -> 27 | J49: =report_connected_load_b+$I48 -> 28 | K49: =report_connected_load_c+$I48 -> 42 | L49: =MAX(I49:K49) -> 42 | M49: A
B50: Projected Remaining Capacity | I50: =pcbr-I49 -> 173 | J50: =pcbr-J49 -> 172 | K50: =pcbr-K49 -> 158 | L50: =MIN(I50:K50) -> 158 | M50: A
A52: =MID(CELL("filename"),SEARCH("[",CELL("filename"))+1, SEARCH("]",CELL("filename"))-SEARCH("[",CELL("filename"))-1) -> maximum_demand_report_generator_01_05.xlsm | L52: 2017-07-01T00:06:32

Sheet Report Temp (hidden)
B1: Sample Report
B3: Job ID | H3: Location | I3: 1 Potter Place, West Pimbo, Skelmersdale, Lancashire, WN8 9PH, UK
B4: Start Time | C4: 2017-07-01T00:06:32
B5: End Time | C5: 2017-07-03T23:56:32 | H5: Source
B6: Duration | D6: 3 | F6: hours | H6: Type | I6: pre-install
B7: Log Interval | D7: 10 | F7: minutes | H7: Phases | I7: 4
H8: Readings | I8: 432
B10: Survey carried out over 3 days prior to installation of new equipment.
B11: 3hr Maximum Continuous Load
C12: A | D12: B | F12: C | H12: N
C13: 0 | D13: 0 | F13: 0 | H13: 0
O20: Max | Z20: Max
O21: Mean | Z21: Mean
O22: Min | Z22: Min
O23: Median | Z23: Median
O24: Stdev | Z24: Stdev
B35: Max
B36: Mean
B37: Min
B38: Median
B39: Stdev
O45: Max
O46: Mean
O47: Min
O48: Median
A49: =MID(CELL("filename"),SEARCH("[",CELL("filename"))+1, SEARCH("]",CELL("filename"))-SEARCH("[",CELL("filename"))-1) -> maximum_demand_report_generator_01_05.xlsm | L49: 2017-07-01T00:06:32 | O49: Stdev

Sheet Chart Template (hidden)
A1: Templates for charts in reports | M1: Templates for charts in preview window
A2: NB. changing chart series line colours programatically to RGB values does not work properly in Excel 2013 (get random colours & points change too)! - having to use a different template here per colour scheme!

Sheet Version History
A1: Version | B1: Date
A2: 1.02 | B2: 2024-08-30 | C2: Initial Version
A3: 1.03 | B3: 2024-10-23 | C3: Now includes Voltage input and estimated Apparent Power
A4: 1.04 | B4: 2025-01-20 | C4: Minor changes and bug fixes
A5: 1.05 | B5: 2025-01-22 | C5: Modified Maximum Demand (Total Power) formula. Added Free Capacity calculation. Removed Base Load. Added units to the tables.

Sheet Sample Data (hidden)
A1: Time | B1: IA Avg | C1: IB Avg | D1: IC Avg | E1: IN Avg | F1: IA Min | G1: IB Min | H1: IC Min | I1: IN Min | J1: IA Max | K1: IB Max | L1: IC Max | M1: IN Max | N1: IAvg Sum | V1: IA Pk-Avg | W1: IB Pk-Avg | X1: IC Pk-Avg | Y1: IN Pk-Avg | AC1: =B1 -> IA Avg | AD1: =C1 -> IB Avg | AE1: IC Avg | AF1: IN Avg | AG1: IA Min | AH1: IB Min | AI1: IC Min | AJ1: IN Min | AK1: IA Max | AL1: IB Max | AM1: IC Max | AN1: IN Max | AO1: IAvg Sum | AP1: 0 | AQ1: 0 | AR1: 0 | AS1: 0 | AT1: 0 | AU1: 0 | AV1: 0 | AW1: IA Pk-Avg | AX1: IB Pk-Avg | AY1: IC Pk-Avg | AZ1: IN Pk-Avg | BA1: limit1 | BB1: limit2 | BC1: Current Rating | BE1: 80% Line | BG1: Max CL | BI1: AMAD | BK1: Seasonal | BM1: Projected Demand | BO1: Time
A2: 2024-04-23T09:35:00 | B2: 10 | C2: 14 | D2: 34 | E2: 0 | F2: 7 | G2: 3 | H2: 24 | I2: 0 | J2: 14 | K2: 28 | L2: 41 | M2: 0 | N2: =SUM(B2:D2) -> 58 | V2: =connected_load_plot+J2-B2 -> 46 | W2: =connected_load_plot+K2-C2 -> 56 | X2: =connected_load_plot+L2-D2 -> 49 | Y2: =0 -> 0 | AB2: Max | AC2: =MAX(B2:B2086) -> 27 | AD2: =MAX(C2:C2086) -> 28 | AE2: 42 | AF2: 0 | AG2: 18 | AH2: 16 | AI2: 33 | AJ2: 0 | AK2: 46 | AL2: 49 | AM2: 66 | AN2: 0 | AO2: 80 | AP2: 0 | AQ2: 0 | AR2: 0 | AS2: 0 | AT2: 0 | AU2: 0 | AV2: 0 | AW2: 68 | AX2: 68 | AY2: 75 | AZ2: 0 | BA2: 0 | BB2: 0 | BC2: =panel_capacity -> 200 | BD2: =temp_rating_desc -> 90% of Rating (40C) | BE2: =nec_80_percent -> 180 | BF2: Maximum Continuous Load (MCL) | BG2: 40 | BH2: Adjusted Maximum Average Demand (+25%) AMAD | BI2: 50 | BJ2: AMCL + Seasonal | BK2: =nec_seasonal_plot -> 0 | BL2: Projected Demand | BM2: =connected_load_plot -> 42 | BO2: 2024-04-23T09:00:00
A3: 2024-04-23T09:40:00 | B3: 10 | C3: 16 | D3: 32 | E3: 0 | F3: 7 | G3: 3 | H3: 25 | I3: 0 | J3: 20 | K3: 28 | L3: 42 | M3: 0 | N3: =SUM(B3:D3) -> 58 | V3: =connected_load_plot+J3-B3 -> 52 | W3: =connected_load_plot+K3-C3 -> 54 | X3: =connected_load_plot+L3-D3 -> 52 | Y3: =0 -> 0 | AB3: Mean | AC3: =AVERAGE(B2:B2086) -> 12.41055156 | AD3: =AVERAGE(C2:C2086) -> 10.00623501 | AE3: 22.88105516 | AF3: 0 | AG3: 5.865707434 | AH3: 3.4441247 | AI3: 14.79664269 | AJ3: 0 | AK3: 21.78081535 | AL3: 20.44892086 | AM3: 33.81726619 | AN3: 0 | AO3: 45.29784173 | AW3: 51.37026379 | AX3: 52.44268585 | AY3: 52.93621103 | AZ3: 0 | BA3: =limit_val1 -> 0 | BB3: =limit2_val -> 0 | BC3: =BC2 -> 200 | BE3: =BE2 -> 180 | BG3: 40 | BI3: 50 | BK3: =BK2 -> 0 | BM3: 42 | BO3: 2024-04-30T16:00:00
A4: 2024-04-23T09:45:00 | B4: 8 | C4: 16 | D4: 34 | E4: 0 | F4: 6 | G4: 3 | H4: 26 | I4: 0 | J4: 14 | K4: 28 | L4: 43 | M4: 0 | N4: 58 | V4: =connected_load_plot+J4-B4 -> 48 | W4: =connected_load_plot+K4-C4 -> 54 | X4: =connected_load_plot+L4-D4 -> 51 | Y4: =0 -> 0 | AB4: Min | AC4: =MIN(B2:B2086) -> 4 | AD4: =MIN(C2:C2086) -> 2 | AE4: 4 | AF4: 0 | AG4: 2 | AH4: 1 | AI4: 4 | AJ4: 0 | AK4: 8 | AL4: 5 | AM4: 6 | AN4: 0 | AO4: 15 | AP4: 0 | AQ4: 0 | AR4: 0 | AS4: 0 | AT4: 0 | AU4: 0 | AV4: 0 | AW4: 44 | AX4: 44 | AY4: 43 | AZ4: 0
A5: 2024-04-23T09:50:00 | B5: 9 | C5: 14 | D5: 35 | E5: 0 | F5: 6 | G5: 3 | H5: 26 | I5: 0 | J5: 19 | K5: 28 | L5: 49 | M5: 0 | N5: 58 | V5: =connected_load_plot+J5-B5 -> 52 | W5: =connected_load_plot+K5-C5 -> 56 | X5: =connected_load_plot+L5-D5 -> 56 | Y5: =0 -> 0 | AB5: Median | AC5: =MEDIAN(B2:B2086) -> 12 | AD5: =MEDIAN(C2:C2086) -> 9 | AE5: 25 | AF5: 0 | AG5: 5 | AH5: 3 | AI5: 16 | AJ5: 0 | AK5: 22 | AL5: 20 | AM5: 36 | AN5: 0 | AO5: 47 | AW5: 51 | AX5: 52 | AY5: 53 | AZ5: 0
A6: 2024-04-23T09:55:00 | B6: 8 | C6: 14 | D6: 31 | E6: 0 | F6: 6 | G6: 3 | H6: 26 | I6: 0 | J6: 14 | K6: 28 | L6: 37 | M6: 0 | N6: 53 | V6: =connected_load_plot+J6-B6 -> 48 | W6: =connected_load_plot+K6-C6 -> 56 | X6: =connected_load_plot+L6-D6 -> 48 | Y6: =0 -> 0 | AB6: Stdev | AC6: =_xlfn.STDEV.P(B2:B2086) -> 4.345099385 | AD6: =_xlfn.STDEV.P(C2:C2086) -> 4.337164085 | AE6: 8.69980296 | AF6: 0 | AG6: 2.873378853 | AH6: 2.61894413 | AI6: 7.089417807 | AJ6: 0 | AK6: 6.974115645 | AL6: 6.970297038 | AM6: 10.65552577 | AN6: 0 | AO6: 12.0651318 | AW6: 3.800300149 | AX6: 4.042721556 | AY6: 4.20565544 | AZ6: 0 | BG6: MAD | BM6: Continuous Load
A7: 2024-04-23T10:00:00 | B7: 8 | C7: 17 | D7: 35 | E7: 0 | F7: 5 | G7: 3 | H7: 26 | I7: 0 | J7: 14 | K7: 28 | L7: 44 | M7: 0 | N7: 60 | V7: =connected_load_plot+J7-B7 -> 48 | W7: =connected_load_plot+K7-C7 -> 53 | X7: =connected_load_plot+L7-D7 -> 51 | Y7: =0 -> 0 | BF7: Current Demand (CD) | BG7: =mad_plot -> 42 | BL7: CONTINUOUS LOAD | BM7: =continuous_load_plot -> 40
A8: 2024-04-23T10:05:00 | B8: 14 | C8: 17 | D8: 35 | E8: 0 | F8: 5 | G8: 3 | H8: 26 | I8: 0 | J8: 27 | K8: 28 | L8: 44 | M8: 0 | N8: 66 | V8: =connected_load_plot+J8-B8 -> 55 | W8: =connected_load_plot+K8-C8 -> 53 | X8: =connected_load_plot+L8-D8 -> 51 | Y8: =0 -> 0 | BG8: =BG7 -> 42 | BM8: =BM7 -> 40
A9: 2024-04-23T10:10:00 | B9: 8 | C9: 17 | D9: 32 | E9: 0 | F9: 6 | G9: 4 | H9: 25 | I9: 0 | J9: 21 | K9: 36 | L9: 43 | M9: 0 | N9: 57 | V9: =connected_load_plot+J9-B9 -> 55 | W9: =connected_load_plot+K9-C9 -> 61 | X9: =connected_load_plot+L9-D9 -> 53 | Y9: =0 -> 0
A10: 2024-04-23T10:15:00 | B10: 8 | C10: 15 | D10: 30 | E10: 0 | F10: 6 | G10: 4 | H10: 25 | I10: 0 | J10: 19 | K10: 29 | L10: 39 | M10: 0 | N10: 53 | V10: =connected_load_plot+J10-B10 -> 53 | W10: =connected_load_plot+K10-C10 -> 56 | X10: =connected_load_plot+L10-D10 -> 51 | Y10: =0 -> 0
A11: 2024-04-23T10:20:00 | B11: 7 | C11: 17 | D11: 35 | E11: 0 | F11: 6 | G11: 4 | H11: 26 | I11: 0 | J11: 13 | K11: 23 | L11: 43 | M11: 0 | N11: 59 | V11: =connected_load_plot+J11-B11 -> 48 | W11: =connected_load_plot+K11-C11 -> 48 | X11: =connected_load_plot+L11-D11 -> 50 | Y11: =0 -> 0
A12: 2024-04-23T10:25:00 | B12: 12 | C12: 17 | D12: 38 | E12: 0 | F12: 6 | G12: 4 | H12: 26 | I12: 0 | J12: 26 | K12: 30 | L12: 47 | M12: 0 | N12: 67 | V12: =connected_load_plot+J12-B12 -> 56 | W12: =connected_load_plot+K12-C12 -> 55 | X12: =connected_load_plot+L12-D12 -> 51 | Y12: =0 -> 0 | AB12: Max
A13: 2024-04-23T10:30:00 | B13: 7 | C13: 14 | D13: 32 | E13: 0 | F13: 6 | G13: 4 | H13: 26 | I13: 0 | J13: 13 | K13: 29 | L13: 39 | M13: 0 | N13: 53 | V13: =connected_load_plot+J13-B13 -> 48 | W13: =connected_load_plot+K13-C13 -> 57 | X13: =connected_load_plot+L13-D13 -> 49 | Y13: =0 -> 0
A14: 2024-04-23T10:35:00 | B14: 9 | C14: 16 | D14: 34 | E14: 0 | F14: 6 | G14: 4 | H14: 26 | I14: 0 | J14: 19 | K14: 30 | L14: 44 | M14: 0 | N14: 59 | V14: =connected_load_plot+J14-B14 -> 52 | W14: =connected_load_plot+K14-C14 -> 56 | X14: =connected_load_plot+L14-D14 -> 52 | Y14: =0 -> 0 | AH14: these are the offsets added to the Max-Avg readings to add a baseline to the peak values on the chart
A15: 2024-04-23T10:40:00 | B15: 8 | C15: 15 | D15: 33 | E15: 0 | F15: 6 | G15: 4 | H15: 27 | I15: 0 | J15: 14 | K15: 30 | L15: 38 | M15: 0 | N15: 56 | V15: =connected_load_plot+J15-B15 -> 48 | W15: =connected_load_plot+K15-C15 -> 57 | X15: =connected_load_plot+L15-D15 -> 47 | Y15: =0 -> 0 | AH15: they need to be subtracted from the max values of the plotted Peak-Avg curves
A16: 2024-04-23T10:45:00 | B16: 9 | C16: 14 | D16: 36 | E16: 0 | F16: 6 | G16: 4 | H16: 27 | I16: 0 | J16: 19 | K16: 30 | L16: 44 | M16: 0 | N16: 59 | V16: =connected_load_plot+J16-B16 -> 52 | W16: =connected_load_plot+K16-C16 -> 58 | X16: =connected_load_plot+L16-D16 -> 50 | Y16: =0 -> 0
A17: 2024-04-23T10:50:00 | B17: 7 | C17: 14 | D17: 34 | E17: 0 | F17: 6 | G17: 4 | H17: 27 | I17: 0 | J17: 13 | K17: 30 | L17: 44 | M17: 0 | N17: 55 | V17: =connected_load_plot+J17-B17 -> 48 | W17: =connected_load_plot+K17-C17 -> 58 | X17: =connected_load_plot+L17-D17 -> 52 | Y17: =0 -> 0
A18: 2024-04-23T10:55:00 | B18: 9 | C18: 14 | D18: 35 | E18: 0 | F18: 6 | G18: 4 | H18: 27 | I18: 0 | J18: 19 | K18: 30 | L18: 44 | M18: 0 | N18: 58 | V18: =connected_load_plot+J18-B18 -> 52 | W18: =connected_load_plot+K18-C18 -> 58 | X18: =connected_load_plot+L18-D18 -> 51 | Y18: =0 -> 0
A19: 2024-04-23T11:00:00 | B19: 8 | C19: 12 | D19: 35 | E19: 0 | F19: 6 | G19: 3 | H19: 26 | I19: 0 | J19: 19 | K19: 24 | L19: 44 | M19: 0 | N19: 55 | V19: =connected_load_plot+J19-B19 -> 53 | W19: =connected_load_plot+K19-C19 -> 54 | X19: =connected_load_plot+L19-D19 -> 51 | Y19: =0 -> 0 | AB19: 0 | AC19: 0 | AE19: additional load
A20: 2024-04-23T11:05:00 | B20: 8 | C20: 12 | D20: 34 | E20: 0 | F20: 6 | G20: 3 | H20: 26 | I20: 0 | J20: 14 | K20: 23 | L20: 44 | M20: 0 | N20: 54 | V20: =connected_load_plot+J20-B20 -> 48 | W20: =connected_load_plot+K20-C20 -> 53 | X20: =connected_load_plot+L20-D20 -> 52 | Y20: =0 -> 0 | AB20: 0 | AC20: 0 | AE20: seasonal_adjust
A21: 2024-04-23T11:10:00 | B21: 7 | C21: 12 | D21: 35 | E21: 0 | F21: 6 | G21: 3 | H21: 26 | I21: 0 | J21: 13 | K21: 23 | L21: 44 | M21: 0 | N21: 54 | V21: =connected_load_plot+J21-B21 -> 48 | W21: =connected_load_plot+K21-C21 -> 53 | X21: =connected_load_plot+L21-D21 -> 51 | Y21: =0 -> 0
A22: 2024-04-23T11:15:00 | B22: 6 | C22: 12 | D22: 35 | E22: 0 | F22: 6 | G22: 3 | H22: 27 | I22: 0 | J22: 9 | K22: 23 | L22: 46 | M22: 0 | N22: 53 | V22: =connected_load_plot+J22-B22 -> 45 | W22: =connected_load_plot+K22-C22 -> 53 | X22: =connected_load_plot+L22-D22 -> 53 | Y22: =0 -> 0
A23: 2024-04-23T11:20:00 | B23: 7 | C23: 13 | D23: 33 | E23: 0 | F23: 6 | G23: 3 | H23: 26 | I23: 0 | J23: 12 | K23: 23 | L23: 39 | M23: 0 | N23: 53 | V23: =connected_load_plot+J23-B23 -> 47 | W23: =connected_load_plot+K23-C23 -> 52 | X23: =connected_load_plot+L23-D23 -> 48 | Y23: =0 -> 0
A24: 2024-04-23T11:25:00 | B24: 6 | C24: 12 | D24: 35 | E24: 0 | F24: 6 | G24: 3 | H24: 26 | I24: 0 | J24: 8 | K24: 23 | L24: 44 | M24: 0 | N24: 53 | V24: =connected_load_plot+J24-B24 -> 44 | W24: =connected_load_plot+K24-C24 -> 53 | X24: =connected_load_plot+L24-D24 -> 51 | Y24: =0 -> 0
A25: 2024-04-23T11:30:00 | B25: 7 | C25: 12 | D25: 35 | E25: 0 | F25: 6 | G25: 3 | H25: 27 | I25: 0 | J25: 19 | K25: 23 | L25: 44 | M25: 0 | N25: 54 | V25: =connected_load_plot+J25-B25 -> 54 | W25: =connected_load_plot+K25-C25 -> 53 | X25: =connected_load_plot+L25-D25 -> 51 | Y25: =0 -> 0
A26: 2024-04-23T11:35:00 | B26: 6 | C26: 12 | D26: 33 | E26: 0 | F26: 6 | G26: 3 | H26: 26 | I26: 0 | J26: 9 | K26: 23 | L26: 39 | M26: 0 | N26: 51 | V26: =connected_load_plot+J26-B26 -> 45 | W26: =connected_load_plot+K26-C26 -> 53 | X26: =connected_load_plot+L26-D26 -> 48 | Y26: =0 -> 0
A27: 2024-04-23T11:40:00 | B27: 7 | C27: 12 | D27: 31 | E27: 0 | F27: 6 | G27: 3 | H27: 25 | I27: 0 | J27: 12 | K27: 16 | L27: 42 | M27: 0 | N27: 50 | V27: =connected_load_plot+J27-B27 -> 47 | W27: =connected_load_plot+K27-C27 -> 46 | X27: =connected_load_plot+L27-D27 -> 53 | Y27: =0 -> 0
A28: 2024-04-23T11:45:00 | B28: 6 | C28: 11 | D28: 33 | E28: 0 | F28: 6 | G28: 3 | H28: 25 | I28: 0 | J28: 8 | K28: 23 | L28: 43 | M28: 0 | N28: 50 | V28: =connected_load_plot+J28-B28 -> 44 | W28: =connected_load_plot+K28-C28 -> 54 | X28: =connected_load_plot+L28-D28 -> 52 | Y28: =0 -> 0 | AB28: Projected Demand for plotting
A29: 2024-04-23T11:50:00 | B29: 7 | C29: 12 | D29: 32 | E29: 0 | F29: 6 | G29: 2 | H29: 24 | I29: 0 | J29: 13 | K29: 22 | L29: 42 | M29: 0 | N29: 51 | V29: =connected_load_plot+J29-B29 -> 48 | W29: =connected_load_plot+K29-C29 -> 52 | X29: =connected_load_plot+L29-D29 -> 52 | Y29: =0 -> 0 | AC29: =NEC!J19 -> 42
A30: 2024-04-23T11:55:00 | B30: 6 | C30: 13 | D30: 31 | E30: 0 | F30: 6 | G30: 2 | H30: 24 | I30: 0 | J30: 12 | K30: 28 | L30: 42 | M30: 0 | N30: 50 | V30: =connected_load_plot+J30-B30 -> 48 | W30: =connected_load_plot+K30-C30 -> 57 | X30: =connected_load_plot+L30-D30 -> 53 | Y30: =0 -> 0
A31: 2024-04-23T12:00:00 | B31: 8 | C31: 11 | D31: 32 | E31: 0 | F31: 6 | G31: 2 | H31: 25 | I31: 0 | J31: 19 | K31: 22 | L31: 42 | M31: 0 | N31: 51 | V31: =connected_load_plot+J31-B31 -> 53 | W31: =connected_load_plot+K31-C31 -> 53 | X31: =connected_load_plot+L31-D31 -> 52 | Y31: =0 -> 0 | AB31: Continuous Load for plotting
A32: 2024-04-23T12:05:00 | B32: 7 | C32: 9 | D32: 31 | E32: 0 | F32: 6 | G32: 2 | H32: 25 | I32: 0 | J32: 13 | K32: 16 | L32: 43 | M32: 0 | N32: 47 | V32: =connected_load_plot+J32-B32 -> 48 | W32: =connected_load_plot+K32-C32 -> 49 | X32: =connected_load_plot+L32-D32 -> 54 | Y32: =0 -> 0 | AC32: 40
A33: 2024-04-23T12:10:00 | B33: 6 | C33: 11 | D33: 31 | E33: 0 | F33: 6 | G33: 2 | H33: 25 | I33: 0 | J33: 13 | K33: 22 | L33: 43 | M33: 0 | N33: 48 | V33: =connected_load_plot+J33-B33 -> 49 | W33: =connected_load_plot+K33-C33 -> 53 | X33: =connected_load_plot+L33-D33 -> 54 | Y33: =0 -> 0
A34: 2024-04-23T12:15:00 | B34: 9 | C34: 13 | D34: 31 | E34: 0 | F34: 6 | G34: 2 | H34: 25 | I34: 0 | J34: 18 | K34: 23 | L34: 42 | M34: 0 | N34: 53 | V34: =connected_load_plot+J34-B34 -> 51 | W34: =connected_load_plot+K34-C34 -> 52 | X34: =connected_load_plot+L34-D34 -> 53 | Y34: =0 -> 0
A35: 2024-04-23T12:20:00 | B35: 10 | C35: 11 | D35: 31 | E35: 0 | F35: 6 | G35: 3 | H35: 25 | I35: 0 | J35: 18 | K35: 22 | L35: 38 | M35: 0 | N35: 52 | V35: =connected_load_plot+J35-B35 -> 50 | W35: =connected_load_plot+K35-C35 -> 53 | X35: =connected_load_plot+L35-D35 -> 49 | Y35: =0 -> 0
A36: 2024-04-23T12:25:00 | B36: 11 | C36: 10 | D36: 32 | E36: 0 | F36: 6 | G36: 3 | H36: 25 | I36: 0 | J36: 17 | K36: 22 | L36: 42 | M36: 0 | N36: 53 | V36: =connected_load_plot+J36-B36 -> 48 | W36: =connected_load_plot+K36-C36 -> 54 | X36: =connected_load_plot+L36-D36 -> 52 | Y36: =0 -> 0
A37: 2024-04-23T12:30:00 | B37: 6 | C37: 13 | D37: 34 | E37: 0 | F37: 6 | G37: 3 | H37: 25 | I37: 0 | J37: 8 | K37: 29 | L37: 44 | M37: 0 | N37: 53 | V37: =connected_load_plot+J37-B37 -> 44 | W37: =connected_load_plot+K37-C37 -> 58 | X37: =connected_load_plot+L37-D37 -> 52 | Y37: =0 -> 0
A38: 2024-04-23T12:35:00 | B38: 7 | C38: 13 | D38: 32 | E38: 0 | F38: 6 | G38: 3 | H38: 26 | I38: 0 | J38: 13 | K38: 23 | L38: 38 | M38: 0 | N38: 52 | V38: =connected_load_plot+J38-B38 -> 48 | W38: =connected_load_plot+K38-C38 -> 52 | X38: =connected_load_plot+L38-D38 -> 48 | Y38: =0 -> 0
A39: 2024-04-23T12:40:00 | B39: 6 | C39: 11 | D39: 37 | E39: 0 | F39: 6 | G39: 3 | H39: 26 | I39: 0 | J39: 8 | K39: 22 | L39: 52 | M39: 0 | N39: 54 | V39: =connected_load_plot+J39-B39 -> 44 | W39: =connected_load_plot+K39-C39 -> 53 | X39: =connected_load_plot+L39-D39 -> 57 | Y39: =0 -> 0
A40: 2024-04-23T12:45:00 | B40: 7 | C40: 10 | D40: 32 | E40: 0 | F40: 6 | G40: 3 | H40: 25 | I40: 0 | J40: 13 | K40: 22 | L40: 41 | M40: 0 | N40: 49 | V40: =connected_load_plot+J40-B40 -> 48 | W40: =connected_load_plot+K40-C40 -> 54 | X40: =connected_load_plot+L40-D40 -> 51 | Y40: =0 -> 0
A41: 2024-04-23T12:50:00 | B41: 6 | C41: 12 | D41: 32 | E41: 0 | F41: 6 | G41: 3 | H41: 25 | I41: 0 | J41: 13 | K41: 22 | L41: 45 | M41: 0 | N41: 50 | V41: =connected_load_plot+J41-B41 -> 49 | W41: =connected_load_plot+K41-C41 -> 52 | X41: =connected_load_plot+L41-D41 -> 55 | Y41: =0 -> 0
A42: 2024-04-23T12:55:00 | B42: 7 | C42: 11 | D42: 35 | E42: 0 | F42: 6 | G42: 3 | H42: 28 | I42: 0 | J42: 13 | K42: 22 | L42: 45 | M42: 0 | N42: 53 | V42: =connected_load_plot+J42-B42 -> 48 | W42: =connected_load_plot+K42-C42 -> 53 | X42: =connected_load_plot+L42-D42 -> 52 | Y42: =0 -> 0
A43: 2024-04-23T13:00:00 | B43: 7 | C43: 11 | D43: 32 | E43: 0 | F43: 6 | G43: 3 | H43: 25 | I43: 0 | J43: 13 | K43: 16 | L43: 44 | M43: 0 | N43: 50 | V43: =connected_load_plot+J43-B43 -> 48 | W43: =connected_load_plot+K43-C43 -> 47 | X43: =connected_load_plot+L43-D43 -> 54 | Y43: =0 -> 0
A44: 2024-04-23T13:05:00 | B44: 6 | C44: 10 | D44: 31 | E44: 0 | F44: 6 | G44: 3 | H44: 25 | I44: 0 | J44: 8 | K44: 23 | L44: 36 | M44: 0 | N44: 47 | V44: =connected_load_plot+J44-B44 -> 44 | W44: =connected_load_plot+K44-C44 -> 55 | X44: =connected_load_plot+L44-D44 -> 47 | Y44: =0 -> 0
A45: 2024-04-23T13:10:00 | B45: 7 | C45: 12 | D45: 32 | E45: 0 | F45: 6 | G45: 3 | H45: 25 | I45: 0 | J45: 13 | K45: 23 | L45: 43 | M45: 0 | N45: 51 | V45: =connected_load_plot+J45-B45 -> 48 | W45: =connected_load_plot+K45-C45 -> 53 | X45: =connected_load_plot+L45-D45 -> 53 | Y45: =0 -> 0
A46: 2024-04-23T13:15:00 | B46: 6 | C46: 12 | D46: 32 | E46: 0 | F46: 5 | G46: 3 | H46: 25 | I46: 0 | J46: 12 | K46: 23 | L46: 43 | M46: 0 | N46: 50 | V46: =connected_load_plot+J46-B46 -> 48 | W46: =connected_load_plot+K46-C46 -> 53 | X46: =connected_load_plot+L46-D46 -> 53 | Y46: =0 -> 0
A47: 2024-04-23T13:20:00 | B47: 7 | C47: 10 | D47: 30 | E47: 0 | F47: 6 | G47: 3 | H47: 25 | I47: 0 | J47: 13 | K47: 16 | L47: 36 | M47: 0 | N47: 47 | V47: =connected_load_plot+J47-B47 -> 48 | W47: =connected_load_plot+K47-C47 -> 48 | X47: =connected_load_plot+L47-D47 -> 48 | Y47: =0 -> 0
A48: 2024-04-23T13:25:00 | B48: 6 | C48: 9 | D48: 33 | E48: 0 | F48: 6 | G48: 3 | H48: 25 | I48: 0 | J48: 8 | K48: 16 | L48: 42 | M48: 0 | N48: 48 | V48: =connected_load_plot+J48-B48 -> 44 | W48: =connected_load_plot+K48-C48 -> 49 | X48: =connected_load_plot+L48-D48 -> 51 | Y48: =0 -> 0
A49: 2024-04-23T13:30:00 | B49: 7 | C49: 11 | D49: 32 | E49: 0 | F49: 6 | G49: 3 | H49: 25 | I49: 0 | J49: 13 | K49: 22 | L49: 42 | M49: 0 | N49: 50 | V49: =connected_load_plot+J49-B49 -> 48 | W49: =connected_load_plot+K49-C49 -> 53 | X49: =connected_load_plot+L49-D49 -> 52 | Y49: =0 -> 0
A50: 2024-04-23T13:35:00 | B50: 6 | C50: 13 | D50: 32 | E50: 0 | F50: 6 | G50: 3 | H50: 25 | I50: 0 | J50: 8 | K50: 23 | L50: 43 | M50: 0 | N50: 51 | V50: =connected_load_plot+J50-B50 -> 44 | W50: =connected_load_plot+K50-C50 -> 52 | X50: =connected_load_plot+L50-D50 -> 53 | Y50: =0 -> 0
A51: 2024-04-23T13:40:00 | B51: 7 | C51: 10 | D51: 33 | E51: 0 | F51: 6 | G51: 3 | H51: 24 | I51: 0 | J51: 13 | K51: 23 | L51: 43 | M51: 0 | N51: 50 | V51: =connected_load_plot+J51-B51 -> 48 | W51: =connected_load_plot+K51-C51 -> 55 | X51: =connected_load_plot+L51-D51 -> 52 | Y51: =0 -> 0
A52: 2024-04-23T13:45:00 | B52: 7 | C52: 10 | D52: 30 | E52: 0 | F52: 6 | G52: 3 | H52: 24 | I52: 0 | J52: 13 | K52: 20 | L52: 37 | M52: 0 | N52: 47 | V52: =connected_load_plot+J52-B52 -> 48 | W52: =connected_load_plot+K52-C52 -> 52 | X52: =connected_load_plot+L52-D52 -> 49 | Y52: =0 -> 0
A53: 2024-04-23T13:50:00 | B53: 13 | C53: 12 | D53: 31 | E53: 0 | F53: 7 | G53: 2 | H53: 24 | I53: 0 | J53: 21 | K53: 21 | L53: 37 | M53: 0 | N53: 56 | V53: =connected_load_plot+J53-B53 -> 50 | W53: =connected_load_plot+K53-C53 -> 51 | X53: =connected_load_plot+L53-D53 -> 48 | Y53: =0 -> 0
A54: 2024-04-23T13:55:00 | B54: 14 | C54: 12 | D54: 33 | E54: 0 | F54: 14 | G54: 3 | H54: 24 | I54: 0 | J54: 20 | K54: 26 | L54: 42 | M54: 0 | N54: 59 | V54: =connected_load_plot+J54-B54 -> 48 | W54: =connected_load_plot+K54-C54 -> 56 | X54: =connected_load_plot+L54-D54 -> 51 | Y54: =0 -> 0
A55: 2024-04-23T14:00:00 | B55: 11 | C55: 10 | D55: 31 | E55: 0 | F55: 7 | G55: 3 | H55: 24 | I55: 0 | J55: 21 | K55: 25 | L55: 44 | M55: 0 | N55: 52 | V55: =connected_load_plot+J55-B55 -> 52 | W55: =connected_load_plot+K55-C55 -> 57 | X55: =connected_load_plot+L55-D55 -> 55 | Y55: =0 -> 0
A56: 2024-04-23T14:05:00 | B56: 7 | C56: 10 | D56: 36 | E56: 0 | F56: 7 | G56: 3 | H56: 25 | I56: 0 | J56: 9 | K56: 16 | L56: 44 | M56: 0 | N56: 53 | V56: =connected_load_plot+J56-B56 -> 44 | W56: =connected_load_plot+K56-C56 -> 48 | X56: =connected_load_plot+L56-D56 -> 50 | Y56: =0 -> 0
A57: 2024-04-23T14:10:00 | B57: 8 | C57: 10 | D57: 33 | E57: 0 | F57: 7 | G57: 3 | H57: 25 | I57: 0 | J57: 15 | K57: 16 | L57: 42 | M57: 0 | N57: 51 | V57: =connected_load_plot+J57-B57 -> 49 | W57: =connected_load_plot+K57-C57 -> 48 | X57: =connected_load_plot+L57-D57 -> 51 | Y57: =0 -> 0
A58: 2024-04-23T14:15:00 | B58: 7 | C58: 13 | D58: 30 | E58: 0 | F58: 7 | G58: 3 | H58: 24 | I58: 0 | J58: 9 | K58: 23 | L58: 36 | M58: 0 | N58: 50 | V58: =connected_load_plot+J58-B58 -> 44 | W58: =connected_load_plot+K58-C58 -> 52 | X58: =connected_load_plot+L58-D58 -> 48 | Y58: =0 -> 0
A59: 2024-04-23T14:20:00 | B59: 8 | C59: 10 | D59: 32 | E59: 0 | F59: 6 | G59: 3 | H59: 24 | I59: 0 | J59: 14 | K59: 22 | L59: 42 | M59: 0 | N59: 50 | V59: =connected_load_plot+J59-B59 -> 48 | W59: =connected_load_plot+K59-C59 -> 54 | X59: =connected_load_plot+L59-D59 -> 52 | Y59: =0 -> 0
A60: 2024-04-23T14:25:00 | B60: 6 | C60: 10 | D60: 32 | E60: 0 | F60: 6 | G60: 3 | H60: 24 | I60: 0 | J60: 8 | K60: 18 | L60: 42 | M60: 0 | N60: 48 | V60: =connected_load_plot+J60-B60 -> 44 | W60: =connected_load_plot+K60-C60 -> 50 | X60: =connected_load_plot+L60-D60 -> 52 | Y60: =0 -> 0
A61: 2024-04-23T14:30:00 | B61: 7 | C61: 12 | D61: 30 | E61: 0 | F61: 6 | G61: 3 | H61: 24 | I61: 0 | J61: 13 | K61: 22 | L61: 36 | M61: 0 | N61: 49 | V61: =connected_load_plot+J61-B61 -> 48 | W61: =connected_load_plot+K61-C61 -> 52 | X61: =connected_load_plot+L61-D61 -> 48 | Y61: =0 -> 0
A62: 2024-04-23T14:35:00 | B62: 8 | C62: 11 | D62: 31 | E62: 0 | F62: 7 | G62: 3 | H62: 24 | I62: 0 | J62: 14 | K62: 22 | L62: 41 | M62: 0 | N62: 50 | V62: =connected_load_plot+J62-B62 -> 48 | W62: =connected_load_plot+K62-C62 -> 53 | X62: =connected_load_plot+L62-D62 -> 52 | Y62: =0 -> 0
A63: 2024-04-23T14:40:00 | B63: 13 | C63: 10 | D63: 29 | E63: 0 | F63: 7 | G63: 3 | H63: 24 | I63: 0 | J63: 20 | K63: 22 | L63: 36 | M63: 0 | N63: 52 | V63: =connected_load_plot+J63-B63 -> 49 | W63: =connected_load_plot+K63-C63 -> 54 | X63: =connected_load_plot+L63-D63 -> 49 | Y63: =0 -> 0
A64: 2024-04-23T14:45:00 | B64: 8 | C64: 11 | D64: 28 | E64: 0 | F64: 6 | G64: 3 | H64: 24 | I64: 0 | J64: 14 | K64: 22 | L64: 35 | M64: 0 | N64: 47 | V64: =connected_load_plot+J64-B64 -> 48 | W64: =connected_load_plot+K64-C64 -> 53 | X64: =connected_load_plot+L64-D64 -> 49 | Y64: =0 -> 0
A65: 2024-04-23T14:50:00 | B65: 14 | C65: 11 | D65: 33 | E65: 0 | F65: 6 | G65: 3 | H65: 24 | I65: 0 | J65: 20 | K65: 16 | L65: 42 | M65: 0 | N65: 58 | V65: =connected_load_plot+J65-B65 -> 48 | W65: =connected_load_plot+K65-C65 -> 47 | X65: =connected_load_plot+L65-D65 -> 51 | Y65: =0 -> 0
A66: 2024-04-23T14:55:00 | B66: 13 | C66: 11 | D66: 31 | E66: 0 | F66: 13 | G66: 3 | H66: 25 | I66: 0 | J66: 15 | K66: 22 | L66: 38 | M66: 0 | N66: 55 | V66: =connected_load_plot+J66-B66 -> 44 | W66: =connected_load_plot+K66-C66 -> 53 | X66: =connected_load_plot+L66-D66 -> 49 | Y66: =0 -> 0
A67: 2024-04-23T15:00:00 | B67: 14 | C67: 12 | D67: 32 | E67: 0 | F67: 6 | G67: 3 | H67: 25 | I67: 0 | J67: 20 | K67: 23 | L67: 42 | M67: 0 | N67: =SUM(B67:D67) -> 58 | V67: =connected_load_plot+J67-B67 -> 48 | W67: =connected_load_plot+K67-C67 -> 53 | X67: =connected_load_plot+L67-D67 -> 52 | Y67: =0 -> 0
A68: 2024-04-23T15:05:00 | B68: 8 | C68: 11 | D68: 33 | E68: 0 | F68: 6 | G68: 3 | H68: 25 | I68: 0 | J68: 18 | K68: 16 | L68: 42 | M68: 0 | N68: 52 | V68: =connected_load_plot+J68-B68 -> 52 | W68: =connected_load_plot+K68-C68 -> 47 | X68: =connected_load_plot+L68-D68 -> 51 | Y68: =0 -> 0
A69: 2024-04-23T15:10:00 | B69: 8 | C69: 11 | D69: 33 | E69: 0 | F69: 6 | G69: 3 | H69: 25 | I69: 0 | J69: 14 | K69: 21 | L69: 43 | M69: 0 | N69: 52 | V69: =connected_load_plot+J69-B69 -> 48 | W69: =connected_load_plot+K69-C69 -> 52 | X69: =connected_load_plot+L69-D69 -> 52 | Y69: =0 -> 0
A70: 2024-04-23T15:15:00 | B70: 7 | C70: 10 | D70: 31 | E70: 0 | F70: 6 | G70: 3 | H70: 25 | I70: 0 | J70: 12 | K70: 16 | L70: 42 | M70: 0 | N70: 48 | V70: =connected_load_plot+J70-B70 -> 47 | W70: =connected_load_plot+K70-C70 -> 48 | X70: =connected_load_plot+L70-D70 -> 53 | Y70: =0 -> 0
A71: 2024-04-23T15:20:00 | B71: 6 | C71: 12 | D71: 32 | E71: 0 | F71: 6 | G71: 3 | H71: 25 | I71: 0 | J71: 12 | K71: 23 | L71: 38 | M71: 0 | N71: 50 | V71: =connected_load_plot+J71-B71 -> 48 | W71: =connected_load_plot+K71-C71 -> 53 | X71: =connected_load_plot+L71-D71 -> 48 | Y71: =0 -> 0
A72: 2024-04-23T15:25:00 | B72: 8 | C72: 10 | D72: 30 | E72: 0 | F72: 5 | G72: 2 | H72: 25 | I72: 0 | J72: 18 | K72: 23 | L72: 36 | M72: 0 | N72: 48 | V72: =connected_load_plot+J72-B72 -> 52 | W72: =connected_load_plot+K72-C72 -> 55 | X72: =connected_load_plot+L72-D72 -> 48 | Y72: =0 -> 0
A73: 2024-04-23T15:30:00 | B73: 7 | C73: 11 | D73: 30 | E73: 0 | F73: 6 | G73: 2 | H73: 25 | I73: 0 | J73: 12 | K73: 21 | L73: 42 | M73: 0 | N73: 48 | V73: =connected_load_plot+J73-B73 -> 47 | W73: =connected_load_plot+K73-C73 -> 52 | X73: =connected_load_plot+L73-D73 -> 54 | Y73: =0 -> 0
A74: 2024-04-23T15:35:00 | B74: 8 | C74: 9 | D74: 36 | E74: 0 | F74: 6 | G74: 2 | H74: 30 | I74: 0 | J74: 13 | K74: 20 | L74: 47 | M74: 0 | N74: 53 | V74: =connected_load_plot+J74-B74 -> 47 | W74: =connected_load_plot+K74-C74 -> 53 | X74: =connected_load_plot+L74-D74 -> 53 | Y74: =0 -> 0
A75: 2024-04-23T15:40:00 | B75: 6 | C75: 9 | D75: 32 | E75: 0 | F75: 6 | G75: 2 | H75: 25 | I75: 0 | J75: 9 | K75: 15 | L75: 47 | M75: 0 | N75: 47 | V75: =connected_load_plot+J75-B75 -> 45 | W75: =connected_load_plot+K75-C75 -> 48 | X75: =connected_load_plot+L75-D75 -> 57 | Y75: =0 -> 0
A76: 2024-04-23T15:45:00 | B76: 7 | C76: 10 | D76: 32 | E76: 0 | F76: 6 | G76: 2 | H76: 26 | I76: 0 | J76: 12 | K76: 21 | L76: 43 | M76: 0 | N76: 49 | V76: =connected_load_plot+J76-B76 -> 47 | W76: =connected_load_plot+K76-C76 -> 53 | X76: =connected_load_plot+L76-D76 -> 53 | Y76: =0 -> 0
A77: 2024-04-23T15:50:00 | B77: 7 | C77: 11 | D77: 35 | E77: 0 | F77: 6 | G77: 3 | H77: 26 | I77: 0 | J77: 13 | K77: 22 | L77: 43 | M77: 0 | N77: 53 | V77: =connected_load_plot+J77-B77 -> 48 | W77: =connected_load_plot+K77-C77 -> 53 | X77: =connected_load_plot+L77-D77 -> 50 | Y77: =0 -> 0
A78: 2024-04-23T15:55:00 | B78: 8 | C78: 10 | D78: 32 | E78: 0 | F78: 6 | G78: 3 | H78: 25 | I78: 0 | J78: 18 | K78: 22 | L78: 44 | M78: 0 | N78: 50 | V78: =connected_load_plot+J78-B78 -> 52 | W78: =connected_load_plot+K78-C78 -> 54 | X78: =connected_load_plot+L78-D78 -> 54 | Y78: =0 -> 0
A79: 2024-04-23T16:00:00 | B79: 6 | C79: 10 | D79: 33 | E79: 0 | F79: 6 | G79: 3 | H79: 25 | I79: 0 | J79: 11 | K79: 16 | L79: 42 | M79: 0 | N79: 49 | V79: =connected_load_plot+J79-B79 -> 47 | W79: =connected_load_plot+K79-C79 -> 48 | X79: =connected_load_plot+L79-D79 -> 51 | Y79: =0 -> 0
A80: 2024-04-23T16:05:00 | B80: 7 | C80: 14 | D80: 31 | E80: 0 | F80: 6 | G80: 3 | H80: 25 | I80: 0 | J80: 13 | K80: 24 | L80: 37 | M80: 0 | N80: 52 | V80: =connected_load_plot+J80-B80 -> 48 | W80: =connected_load_plot+K80-C80 -> 52 | X80: =connected_load_plot+L80-D80 -> 48 | Y80: =0 -> 0
A81: 2024-04-23T16:10:00 | B81: 7 | C81: 14 | D81: 35 | E81: 0 | F81: 6 | G81: 3 | H81: 25 | I81: 0 | J81: 13 | K81: 24 | L81: 45 | M81: 0 | N81: 56 | V81: =connected_load_plot+J81-B81 -> 48 | W81: =connected_load_plot+K81-C81 -> 52 | X81: =connected_load_plot+L81-D81 -> 52 | Y81: =0 -> 0
A82: 2024-04-23T16:15:00 | B82: 8 | C82: 12 | D82: 33 | E82: 0 | F82: 6 | G82: 3 | H82: 24 | I82: 0 | J82: 13 | K82: 26 | L82: 40 | M82: 0 | N82: 53 | V82: =connected_load_plot+J82-B82 -> 47 | W82: =connected_load_plot+K82-C82 -> 56 | X82: =connected_load_plot+L82-D82 -> 49 | Y82: =0 -> 0
A83: 2024-04-23T16:20:00 | B83: 6 | C83: 12 | D83: 35 | E83: 0 | F83: 6 | G83: 3 | H83: 25 | I83: 0 | J83: 13 | K83: 26 | L83: 47 | M83: 0 | N83: 53 | V83: =connected_load_plot+J83-B83 -> 49 | W83: =connected_load_plot+K83-C83 -> 56 | X83: =connected_load_plot+L83-D83 -> 54 | Y83: =0 -> 0
A84: 2024-04-23T16:25:00 | B84: 7 | C84: 12 | D84: 31 | E84: 0 | F84: 6 | G84: 3 | H84: 25 | I84: 0 | J84: 13 | K84: 22 | L84: 39 | M84: 0 | N84: 50 | V84: =connected_load_plot+J84-B84 -> 48 | W84: =connected_load_plot+K84-C84 -> 52 | X84: =connected_load_plot+L84-D84 -> 50 | Y84: =0 -> 0
A85: 2024-04-23T16:30:00 | B85: 6 | C85: 12 | D85: 35 | E85: 0 | F85: 5 | G85: 3 | H85: 25 | I85: 0 | J85: 12 | K85: 16 | L85: 47 | M85: 0 | N85: 53 | V85: =connected_load_plot+J85-B85 -> 48 | W85: =connected_load_plot+K85-C85 -> 46 | X85: =connected_load_plot+L85-D85 -> 54 | Y85: =0 -> 0
A86: 2024-04-23T16:35:00 | B86: 8 | C86: 11 | D86: 30 | E86: 0 | F86: 5 | G86: 3 | H86: 25 | I86: 0 | J86: 18 | K86: 16 | L86: 41 | M86: 0 | N86: 49 | V86: =connected_load_plot+J86-B86 -> 52 | W86: =connected_load_plot+K86-C86 -> 47 | X86: =connected_load_plot+L86-D86 -> 53 | Y86: =0 -> 0
A87: 2024-04-23T16:40:00 | B87: 6 | C87: 10 | D87: 31 | E87: 0 | F87: 5 | G87: 3 | H87: 25 | I87: 0 | J87: 12 | K87: 16 | L87: 41 | M87: 0 | N87: 47 | V87: =connected_load_plot+J87-B87 -> 48 | W87: =connected_load_plot+K87-C87 -> 48 | X87: =connected_load_plot+L87-D87 -> 52 | Y87: =0 -> 0
A88: 2024-04-23T16:45:00 | B88: 6 | C88: 12 | D88: 31 | E88: 0 | F88: 5 | G88: 3 | H88: 24 | I88: 0 | J88: 12 | K88: 16 | L88: 41 | M88: 0 | N88: 49 | V88: =connected_load_plot+J88-B88 -> 48 | W88: =connected_load_plot+K88-C88 -> 46 | X88: =connected_load_plot+L88-D88 -> 52 | Y88: =0 -> 0
A89: 2024-04-23T16:50:00 | B89: 5 | C89: 11 | D89: 30 | E89: 0 | F89: 5 | G89: 3 | H89: 24 | I89: 0 | J89: 8 | K89: 18 | L89: 37 | M89: 0 | N89: 46 | V89: =connected_load_plot+J89-B89 -> 45 | W89: =connected_load_plot+K89-C89 -> 49 | X89: =connected_load_plot+L89-D89 -> 49 | Y89: =0 -> 0
A90: 2024-04-23T16:55:00 | B90: 7 | C90: 11 | D90: 29 | E90: 0 | F90: 5 | G90: 3 | H90: 24 | I90: 0 | J90: 13 | K90: 24 | L90: 36 | M90: 0 | N90: 47 | V90: =connected_load_plot+J90-B90 -> 48 | W90: =connected_load_plot+K90-C90 -> 55 | X90: =connected_load_plot+L90-D90 -> 49 | Y90: =0 -> 0
A91: 2024-04-23T17:00:00 | B91: 8 | C91: 12 | D91: 32 | E91: 0 | F91: 6 | G91: 3 | H91: 24 | I91: 0 | J91: 18 | K91: 22 | L91: 42 | M91: 0 | N91: 52 | V91: =connected_load_plot+J91-B91 -> 52 | W91: =connected_load_plot+K91-C91 -> 52 | X91: =connected_load_plot+L91-D91 -> 52 | Y91: =0 -> 0
A92: 2024-04-23T17:05:00 | B92: 6 | C92: 13 | D92: 30 | E92: 0 | F92: 5 | G92: 3 | H92: 24 | I92: 0 | J92: 18 | K92: 22 | L92: 46 | M92: 0 | N92: 49 | V92: =connected_load_plot+J92-B92 -> 54 | W92: =connected_load_plot+K92-C92 -> 51 | X92: =connected_load_plot+L92-D92 -> 58 | Y92: =0 -> 0
A93: 2024-04-23T17:10:00 | B93: 6 | C93: 9 | D93: 31 | E93: 0 | F93: 5 | G93: 3 | H93: 24 | I93: 0 | J93: 12 | K93: 22 | L93: 41 | M93: 0 | N93: 46 | V93: =connected_load_plot+J93-B93 -> 48 | W93: =connected_load_plot+K93-C93 -> 55 | X93: =connected_load_plot+L93-D93 -> 52 | Y93: =0 -> 0
A94: 2024-04-23T17:15:00 | B94: 7 | C94: 11 | D94: 33 | E94: 0 | F94: 5 | G94: 3 | H94: 24 | I94: 0 | J94: 12 | K94: 22 | L94: 42 | M94: 0 | N94: 51 | V94: =connected_load_plot+J94-B94 -> 47 | W94: =connected_load_plot+K94-C94 -> 53 | X94: =connected_load_plot+L94-D94 -> 51 | Y94: =0 -> 0
A95: 2024-04-23T17:20:00 | B95: 8 | C95: 13 | D95: 28 | E95: 0 | F95: 5 | G95: 3 | H95: 23 | I95: 0 | J95: 18 | K95: 22 | L95: 31 | M95: 0 | N95: 49 | V95: =connected_load_plot+J95-B95 -> 52 | W95: =connected_load_plot+K95-C95 -> 51 | X95: =connected_load_plot+L95-D95 -> 45 | Y95: =0 -> 0
A96: 2024-04-23T17:25:00 | B96: 6 | C96: 13 | D96: 28 | E96: 0 | F96: 5 | G96: 3 | H96: 24 | I96: 0 | J96: 13 | K96: 23 | L96: 38 | M96: 0 | N96: 47 | V96: =connected_load_plot+J96-B96 -> 49 | W96: =connected_load_plot+K96-C96 -> 52 | X96: =connected_load_plot+L96-D96 -> 52 | Y96: =0 -> 0
A97: 2024-04-23T17:30:00 | B97: 6 | C97: 15 | D97: 31 | E97: 0 | F97: 6 | G97: 4 | H97: 25 | I97: 0 | J97: 13 | K97: 26 | L97: 42 | M97: 0 | N97: 52 | V97: =connected_load_plot+J97-B97 -> 49 | W97: =connected_load_plot+K97-C97 -> 53 | X97: =connected_load_plot+L97-D97 -> 53 | Y97: =0 -> 0
A98: 2024-04-23T17:35:00 | B98: 7 | C98: 11 | D98: 31 | E98: 0 | F98: 6 | G98: 4 | H98: 25 | I98: 0 | J98: 13 | K98: 23 | L98: 39 | M98: 0 | N98: 49 | V98: =connected_load_plot+J98-B98 -> 48 | W98: =connected_load_plot+K98-C98 -> 54 | X98: =connected_load_plot+L98-D98 -> 50 | Y98: =0 -> 0
A99: 2024-04-23T17:40:00 | B99: 8 | C99: 15 | D99: 31 | E99: 0 | F99: 5 | G99: 4 | H99: 26 | I99: 0 | J99: 18 | K99: 25 | L99: 37 | M99: 0 | N99: 54 | V99: =connected_load_plot+J99-B99 -> 52 | W99: =connected_load_plot+K99-C99 -> 52 | X99: =connected_load_plot+L99-D99 -> 48 | Y99: =0 -> 0
A100: 2024-04-23T17:45:00 | B100: 10 | C100: 11 | D100: 32 | E100: 0 | F100: 5 | G100: 4 | H100: 26 | I100: 0 | J100: 18 | K100: 24 | L100: 46 | M100: 0 | N100: 53 | V100: =connected_load_plot+J100-B100 -> 50 | W100: =connected_load_plot+K100-C100 -> 55 | X100: =connected_load_plot+L100-D100 -> 56 | Y100: =0 -> 0
A101: 2024-04-23T17:50:00 | B101: 13 | C101: 11 | D101: 38 | E101: 0 | F101: 11 | G101: 3 | H101: 27 | I101: 0 | J101: 18 | K101: 20 | L101: 48 | M101: 0 | N101: 62 | V101: =connected_load_plot+J101-B101 -> 47 | W101: =connected_load_plot+K101-C101 -> 51 | X101: =connected_load_plot+L101-D101 -> 52 | Y101: =0 -> 0
A102: 2024-04-23T17:55:00 | B102: 12 | C102: 9 | D102: 36 | E102: 0 | F102: 12 | G102: 3 | H102: 26 | I102: 0 | J102: 19 | K102: 23 | L102: 52 | M102: 0 | N102: 57 | V102: =connected_load_plot+J102-B102 -> 49 | W102: =connected_load_plot+K102-C102 -> 56 | X102: =connected_load_plot+L102-D102 -> 58 | Y102: =0 -> 0
A103: 2024-04-23T18:00:00 | B103: 14 | C103: 9 | D103: 33 | E103: 0 | F103: 12 | G103: 3 | H103: 26 | I103: 0 | J103: 24 | K103: 23 | L103: 44 | M103: 0 | N103: 56 | V103: =connected_load_plot+J103-B103 -> 52 | W103: =connected_load_plot+K103-C103 -> 56 | X103: =connected_load_plot+L103-D103 -> 53 | Y103: =0 -> 0
A104: 2024-04-23T18:05:00 | B104: 13 | C104: 12 | D104: 31 | E104: 0 | F104: 12 | G104: 4 | H104: 26 | I104: 0 | J104: 19 | K104: 17 | L104: 37 | M104: 0 | N104: 56 | V104: =connected_load_plot+J104-B104 -> 48 | W104: =connected_load_plot+K104-C104 -> 47 | X104: =connected_load_plot+L104-D104 -> 48 | Y104: =0 -> 0
A105: 2024-04-23T18:10:00 | B105: 13 | C105: 11 | D105: 31 | E105: 0 | F105: 12 | G105: 4 | H105: 25 | I105: 0 | J105: 19 | K105: 17 | L105: 38 | M105: 0 | N105: 55 | V105: =connected_load_plot+J105-B105 -> 48 | W105: =connected_load_plot+K105-C105 -> 48 | X105: =connected_load_plot+L105-D105 -> 49 | Y105: =0 -> 0
A106: 2024-04-23T18:15:00 | B106: 12 | C106: 10 | D106: 33 | E106: 0 | F106: 12 | G106: 4 | H106: 26 | I106: 0 | J106: 14 | K106: 24 | L106: 43 | M106: 0 | N106: 55 | V106: =connected_load_plot+J106-B106 -> 44 | W106: =connected_load_plot+K106-C106 -> 56 | X106: =connected_load_plot+L106-D106 -> 52 | Y106: =0 -> 0
A107: 2024-04-23T18:20:00 | B107: 14 | C107: 12 | D107: 31 | E107: 0 | F107: 12 | G107: 4 | H107: 26 | I107: 0 | J107: 30 | K107: 24 | L107: 39 | M107: 0 | N107: 57 | V107: =connected_load_plot+J107-B107 -> 58 | W107: =connected_load_plot+K107-C107 -> 54 | X107: =connected_load_plot+L107-D107 -> 50 | Y107: =0 -> 0
A108: 2024-04-23T18:25:00 | B108: 14 | C108: 11 | D108: 31 | E108: 0 | F108: 12 | G108: 4 | H108: 26 | I108: 0 | J108: 20 | K108: 18 | L108: 38 | M108: 0 | N108: 56 | V108: =connected_load_plot+J108-B108 -> 48 | W108: =connected_load_plot+K108-C108 -> 49 | X108: =connected_load_plot+L108-D108 -> 49 | Y108: =0 -> 0
A109: 2024-04-23T18:30:00 | B109: 13 | C109: 11 | D109: 31 | E109: 0 | F109: 12 | G109: 4 | H109: 26 | I109: 0 | J109: 19 | K109: 24 | L109: 38 | M109: 0 | N109: 55 | V109: =connected_load_plot+J109-B109 -> 48 | W109: =connected_load_plot+K109-C109 -> 55 | X109: =connected_load_plot+L109-D109 -> 49 | Y109: =0 -> 0
A110: 2024-04-23T18:35:00 | B110: 12 | C110: 11 | D110: 33 | E110: 0 | F110: 12 | G110: 4 | H110: 26 | I110: 0 | J110: 18 | K110: 17 | L110: 44 | M110: 0 | N110: 56 | V110: =connected_load_plot+J110-B110 -> 48 | W110: =connected_load_plot+K110-C110 -> 48 | X110: =connected_load_plot+L110-D110 -> 53 | Y110: =0 -> 0
A111: 2024-04-23T18:40:00 | B111: 13 | C111: 11 | D111: 33 | E111: 0 | F111: 12 | G111: 4 | H111: 26 | I111: 0 | J111: 19 | K111: 18 | L111: 44 | M111: 0 | N111: 57 | V111: =connected_load_plot+J111-B111 -> 48 | W111: =connected_load_plot+K111-C111 -> 49 | X111: =connected_load_plot+L111-D111 -> 53 | Y111: =0 -> 0
A112: 2024-04-23T18:45:00 | B112: 16 | C112: 12 | D112: 33 | E112: 0 | F112: 12 | G112: 4 | H112: 27 | I112: 0 | J112: 20 | K112: 24 | L112: 40 | M112: 0 | N112: 61 | V112: =connected_load_plot+J112-B112 -> 46 | W112: =connected_load_plot+K112-C112 -> 54 | X112: =connected_load_plot+L112-D112 -> 49 | Y112: =0 -> 0
A113: 2024-04-23T18:50:00 | B113: 20 | C113: 11 | D113: 33 | E113: 0 | F113: 12 | G113: 4 | H113: 27 | I113: 0 | J113: 33 | K113: 24 | L113: 45 | M113: 0 | N113: 64 | V113: =connected_load_plot+J113-B113 -> 55 | W113: =connected_load_plot+K113-C113 -> 55 | X113: =connected_load_plot+L113-D113 -> 54 | Y113: =0 -> 0
A114: 2024-04-23T18:55:00 | B114: 15 | C114: 11 | D114: 36 | E114: 0 | F114: 12 | G114: 4 | H114: 31 | I114: 0 | J114: 20 | K114: 17 | L114: 45 | M114: 0 | N114: 62 | V114: =connected_load_plot+J114-B114 -> 47 | W114: =connected_load_plot+K114-C114 -> 48 | X114: =connected_load_plot+L114-D114 -> 51 | Y114: =0 -> 0
A115: 2024-04-23T19:00:00 | B115: 18 | C115: 10 | D115: 32 | E115: 0 | F115: 12 | G115: 4 | H115: 26 | I115: 0 | J115: 25 | K115: 18 | L115: 44 | M115: 0 | N115: 60 | V115: =connected_load_plot+J115-B115 -> 49 | W115: =connected_load_plot+K115-C115 -> 50 | X115: =connected_load_plot+L115-D115 -> 54 | Y115: =0 -> 0
A116: 2024-04-23T19:05:00 | B116: 14 | C116: 11 | D116: 35 | E116: 0 | F116: 12 | G116: 4 | H116: 27 | I116: 0 | J116: 20 | K116: 18 | L116: 45 | M116: 0 | N116: 60 | V116: =connected_load_plot+J116-B116 -> 48 | W116: =connected_load_plot+K116-C116 -> 49 | X116: =connected_load_plot+L116-D116 -> 52 | Y116: =0 -> 0
A117: 2024-04-23T19:10:00 | B117: 18 | C117: 12 | D117: 32 | E117: 0 | F117: 7 | G117: 4 | H117: 27 | I117: 0 | J117: 25 | K117: 17 | L117: 44 | M117: 0 | N117: 62 | V117: =connected_load_plot+J117-B117 -> 49 | W117: =connected_load_plot+K117-C117 -> 47 | X117: =connected_load_plot+L117-D117 -> 54 | Y117: =0 -> 0
A118: 2024-04-23T19:15:00 | B118: 21 | C118: 13 | D118: 35 | E118: 0 | F118: 12 | G118: 10 | H118: 26 | I118: 0 | J118: 25 | K118: 23 | L118: 44 | M118: 0 | N118: 69 | V118: =connected_load_plot+J118-B118 -> 46 | W118: =connected_load_plot+K118-C118 -> 52 | X118: =connected_load_plot+L118-D118 -> 51 | Y118: =0 -> 0
A119: 2024-04-23T19:20:00 | B119: 23 | C119: 14 | D119: 31 | E119: 0 | F119: 18 | G119: 10 | H119: 26 | I119: 0 | J119: 31 | K119: 24 | L119: 39 | M119: 0 | N119: 68 | V119: =connected_load_plot+J119-B119 -> 50 | W119: =connected_load_plot+K119-C119 -> 52 | X119: =connected_load_plot+L119-D119 -> 50 | Y119: =0 -> 0
A120: 2024-04-23T19:25:00 | B120: 19 | C120: 12 | D120: 36 | E120: 0 | F120: 13 | G120: 9 | H120: 25 | I120: 0 | J120: 26 | K120: 17 | L120: 48 | M120: 0 | N120: 67 | V120: =connected_load_plot+J120-B120 -> 49 | W120: =connected_load_plot+K120-C120 -> 47 | X120: =connected_load_plot+L120-D120 -> 54 | Y120: =0 -> 0
A121: 2024-04-23T19:30:00 | B121: 20 | C121: 12 | D121: 29 | E121: 0 | F121: 12 | G121: 9 | H121: 25 | I121: 0 | J121: 31 | K121: 17 | L121: 36 | M121: 0 | N121: 61 | V121: =connected_load_plot+J121-B121 -> 53 | W121: =connected_load_plot+K121-C121 -> 47 | X121: =connected_load_plot+L121-D121 -> 49 | Y121: =0 -> 0
A122: 2024-04-23T19:35:00 | B122: 19 | C122: 12 | D122: 32 | E122: 0 | F122: 12 | G122: 9 | H122: 25 | I122: 0 | J122: 25 | K122: 17 | L122: 41 | M122: 0 | N122: 63 | V122: =connected_load_plot+J122-B122 -> 48 | W122: =connected_load_plot+K122-C122 -> 47 | X122: =connected_load_plot+L122-D122 -> 51 | Y122: =0 -> 0
A123: 2024-04-23T19:40:00 | B123: 19 | C123: 12 | D123: 31 | E123: 0 | F123: 6 | G123: 4 | H123: 25 | I123: 0 | J123: 30 | K123: 30 | L123: 39 | M123: 0 | N123: 62 | V123: =connected_load_plot+J123-B123 -> 53 | W123: =connected_load_plot+K123-C123 -> 60 | X123: =connected_load_plot+L123-D123 -> 50 | Y123: =0 -> 0
A124: 2024-04-23T19:45:00 | B124: 17 | C124: 11 | D124: 35 | E124: 0 | F124: 6 | G124: 4 | H124: 24 | I124: 0 | J124: 25 | K124: 24 | L124: 48 | M124: 0 | N124: 63 | V124: =connected_load_plot+J124-B124 -> 50 | W124: =connected_load_plot+K124-C124 -> 55 | X124: =connected_load_plot+L124-D124 -> 55 | Y124: =0 -> 0
A125: 2024-04-23T19:50:00 | B125: 20 | C125: 11 | D125: 29 | E125: 0 | F125: 12 | G125: 4 | H125: 24 | I125: 0 | J125: 31 | K125: 17 | L125: 36 | M125: 0 | N125: 60 | V125: =connected_load_plot+J125-B125 -> 53 | W125: =connected_load_plot+K125-C125 -> 48 | X125: =connected_load_plot+L125-D125 -> 49 | Y125: =0 -> 0
A126: 2024-04-23T19:55:00 | B126: 19 | C126: 11 | D126: 33 | E126: 0 | F126: 12 | G126: 4 | H126: 25 | I126: 0 | J126: 25 | K126: 17 | L126: 38 | M126: 0 | N126: 63 | V126: =connected_load_plot+J126-B126 -> 48 | W126: =connected_load_plot+K126-C126 -> 48 | X126: =connected_load_plot+L126-D126 -> 47 | Y126: =0 -> 0
A127: 2024-04-23T20:00:00 | B127: 20 | C127: 11 | D127: 32 | E127: 0 | F127: 12 | G127: 4 | H127: 26 | I127: 0 | J127: 31 | K127: 24 | L127: 40 | M127: 0 | N127: 63 | V127: =connected_load_plot+J127-B127 -> 53 | W127: =connected_load_plot+K127-C127 -> 55 | X127: =connected_load_plot+L127-D127 -> 50 | Y127: =0 -> 0
A128: 2024-04-23T20:05:00 | B128: 15 | C128: 11 | D128: 33 | E128: 0 | F128: 6 | G128: 3 | H128: 26 | I128: 0 | J128: 25 | K128: 23 | L128: 43 | M128: 0 | N128: 59 | V128: =connected_load_plot+J128-B128 -> 52 | W128: =connected_load_plot+K128-C128 -> 54 | X128: =connected_load_plot+L128-D128 -> 52 | Y128: =0 -> 0
A129: 2024-04-23T20:10:00 | B129: 20 | C129: 10 | D129: 31 | E129: 0 | F129: 12 | G129: 3 | H129: 25 | I129: 0 | J129: 31 | K129: 16 | L129: 43 | M129: 0 | N129: 61 | V129: =connected_load_plot+J129-B129 -> 53 | W129: =connected_load_plot+K129-C129 -> 48 | X129: =connected_load_plot+L129-D129 -> 54 | Y129: =0 -> 0
A130: 2024-04-23T20:15:00 | B130: 19 | C130: 9 | D130: 32 | E130: 0 | F130: 12 | G130: 3 | H130: 25 | I130: 0 | J130: 32 | K130: 16 | L130: 43 | M130: 0 | N130: 60 | V130: =connected_load_plot+J130-B130 -> 55 | W130: =connected_load_plot+K130-C130 -> 49 | X130: =connected_load_plot+L130-D130 -> 53 | Y130: =0 -> 0
A131: 2024-04-23T20:20:00 | B131: 19 | C131: 11 | D131: 32 | E131: 0 | F131: 7 | G131: 3 | H131: 26 | I131: 0 | J131: 32 | K131: 23 | L131: 43 | M131: 0 | N131: =SUM(B131:D131) -> 62 | V131: =connected_load_plot+J131-B131 -> 55 | W131: =connected_load_plot+K131-C131 -> 54 | X131: =connected_load_plot+L131-D131 -> 53 | Y131: =0 -> 0
A132: 2024-04-23T20:25:00 | B132: 17 | C132: 10 | D132: 31 | E132: 0 | F132: 7 | G132: 3 | H132: 25 | I132: 0 | J132: 27 | K132: 21 | L132: 37 | M132: 0 | N132: 58 | V132: =connected_load_plot+J132-B132 -> 52 | W132: =connected_load_plot+K132-C132 -> 53 | X132: =connected_load_plot+L132-D132 -> 48 | Y132: =0 -> 0
A133: 2024-04-23T20:30:00 | B133: 15 | C133: 11 | D133: 32 | E133: 0 | F133: 7 | G133: 3 | H133: 26 | I133: 0 | J133: 25 | K133: 17 | L133: 41 | M133: 0 | N133: 58 | V133: =connected_load_plot+J133-B133 -> 52 | W133: =connected_load_plot+K133-C133 -> 48 | X133: =connected_load_plot+L133-D133 -> 51 | Y133: =0 -> 0
A134: 2024-04-23T20:35:00 | B134: 14 | C134: 10 | D134: 36 | E134: 0 | F134: 7 | G134: 4 | H134: 27 | I134: 0 | J134: 20 | K134: 18 | L134: 52 | M134: 0 | N134: 60 | V134: =connected_load_plot+J134-B134 -> 48 | W134: =connected_load_plot+K134-C134 -> 50 | X134: =connected_load_plot+L134-D134 -> 58 | Y134: =0 -> 0
A135: 2024-04-23T20:40:00 | B135: 13 | C135: 12 | D135: 34 | E135: 0 | F135: 7 | G135: 4 | H135: 27 | I135: 0 | J135: 26 | K135: 24 | L135: 52 | M135: 0 | N135: 59 | V135: =connected_load_plot+J135-B135 -> 55 | W135: =connected_load_plot+K135-C135 -> 54 | X135: =connected_load_plot+L135-D135 -> 60 | Y135: =0 -> 0
A136: 2024-04-23T20:45:00 | B136: 14 | C136: 12 | D136: 33 | E136: 0 | F136: 8 | G136: 4 | H136: 26 | I136: 0 | J136: 21 | K136: 23 | L136: 44 | M136: 0 | N136: 59 | V136: =connected_load_plot+J136-B136 -> 49 | W136: =connected_load_plot+K136-C136 -> 53 | X136: =connected_load_plot+L136-D136 -> 53 | Y136: =0 -> 0
A137: 2024-04-23T20:50:00 | B137: 15 | C137: 10 | D137: 34 | E137: 0 | F137: 7 | G137: 4 | H137: 26 | I137: 0 | J137: 25 | K137: 17 | L137: 44 | M137: 0 | N137: 59 | V137: =connected_load_plot+J137-B137 -> 52 | W137: =connected_load_plot+K137-C137 -> 49 | X137: =connected_load_plot+L137-D137 -> 52 | Y137: =0 -> 0
A138: 2024-04-23T20:55:00 | B138: 16 | C138: 10 | D138: 33 | E138: 0 | F138: 7 | G138: 4 | H138: 26 | I138: 0 | J138: 26 | K138: 17 | L138: 43 | M138: 0 | N138: 59 | V138: =connected_load_plot+J138-B138 -> 52 | W138: =connected_load_plot+K138-C138 -> 49 | X138: =connected_load_plot+L138-D138 -> 52 | Y138: =0 -> 0
A139: 2024-04-23T21:00:00 | B139: 20 | C139: 12 | D139: 31 | E139: 0 | F139: 13 | G139: 4 | H139: 26 | I139: 0 | J139: 26 | K139: 23 | L139: 39 | M139: 0 | N139: 63 | V139: =connected_load_plot+J139-B139 -> 48 | W139: =connected_load_plot+K139-C139 -> 53 | X139: =connected_load_plot+L139-D139 -> 50 | Y139: =0 -> 0
A140: 2024-04-23T21:05:00 | B140: 19 | C140: 14 | D140: 32 | E140: 0 | F140: 13 | G140: 4 | H140: 26 | I140: 0 | J140: 26 | K140: 31 | L140: 44 | M140: 0 | N140: 65 | V140: =connected_load_plot+J140-B140 -> 49 | W140: =connected_load_plot+K140-C140 -> 59 | X140: =connected_load_plot+L140-D140 -> 54 | Y140: =0 -> 0
A141: 2024-04-23T21:10:00 | B141: 18 | C141: 11 | D141: 32 | E141: 0 | F141: 12 | G141: 4 | H141: 26 | I141: 0 | J141: 31 | K141: 17 | L141: 43 | M141: 0 | N141: 61 | V141: =connected_load_plot+J141-B141 -> 55 | W141: =connected_load_plot+K141-C141 -> 48 | X141: =connected_load_plot+L141-D141 -> 53 | Y141: =0 -> 0
A142: 2024-04-23T21:15:00 | B142: 16 | C142: 12 | D142: 33 | E142: 0 | F142: 7 | G142: 4 | H142: 26 | I142: 0 | J142: 25 | K142: 17 | L142: 43 | M142: 0 | N142: 61 | V142: =connected_load_plot+J142-B142 -> 51 | W142: =connected_load_plot+K142-C142 -> 47 | X142: =connected_load_plot+L142-D142 -> 52 | Y142: =0 -> 0
A143: 2024-04-23T21:20:00 | B143: 14 | C143: 10 | D143: 33 | E143: 0 | F143: 6 | G143: 4 | H143: 26 | I143: 0 | J143: 25 | K143: 18 | L143: 44 | M143: 0 | N143: 57 | V143: =connected_load_plot+J143-B143 -> 53 | W143: =connected_load_plot+K143-C143 -> 50 | X143: =connected_load_plot+L143-D143 -> 53 | Y143: =0 -> 0
A144: 2024-04-23T21:25:00 | B144: 12 | C144: 13 | D144: 33 | E144: 0 | F144: 7 | G144: 4 | H144: 26 | I144: 0 | J144: 19 | K144: 24 | L144: 44 | M144: 0 | N144: 58 | V144: =connected_load_plot+J144-B144 -> 49 | W144: =connected_load_plot+K144-C144 -> 53 | X144: =connected_load_plot+L144-D144 -> 53 | Y144: =0 -> 0
A145: 2024-04-23T21:30:00 | B145: 15 | C145: 13 | D145: 33 | E145: 0 | F145: 7 | G145: 4 | H145: 26 | I145: 0 | J145: 25 | K145: 25 | L145: 43 | M145: 0 | N145: 61 | V145: =connected_load_plot+J145-B145 -> 52 | W145: =connected_load_plot+K145-C145 -> 54 | X145: =connected_load_plot+L145-D145 -> 52 | Y145: =0 -> 0
A146: 2024-04-23T21:35:00 | B146: 12 | C146: 11 | D146: 32 | E146: 0 | F146: 6 | G146: 4 | H146: 26 | I146: 0 | J146: 19 | K146: 24 | L146: 47 | M146: 0 | N146: 55 | V146: =connected_load_plot+J146-B146 -> 49 | W146: =connected_load_plot+K146-C146 -> 55 | X146: =connected_load_plot+L146-D146 -> 57 | Y146: =0 -> 0
A147: 2024-04-23T21:40:00 | B147: 13 | C147: 11 | D147: 32 | E147: 0 | F147: 7 | G147: 4 | H147: 26 | I147: 0 | J147: 25 | K147: 18 | L147: 40 | M147: 0 | N147: 56 | V147: =connected_load_plot+J147-B147 -> 54 | W147: =connected_load_plot+K147-C147 -> 49 | X147: =connected_load_plot+L147-D147 -> 50 | Y147: =0 -> 0
A148: 2024-04-23T21:45:00 | B148: 14 | C148: 14 | D148: 31 | E148: 0 | F148: 6 | G148: 4 | H148: 25 | I148: 0 | J148: 25 | K148: 24 | L148: 38 | M148: 0 | N148: 59 | V148: =connected_load_plot+J148-B148 -> 53 | W148: =connected_load_plot+K148-C148 -> 52 | X148: =connected_load_plot+L148-D148 -> 49 | Y148: =0 -> 0
A149: 2024-04-23T21:50:00 | B149: 13 | C149: 11 | D149: 31 | E149: 0 | F149: 6 | G149: 4 | H149: 24 | I149: 0 | J149: 19 | K149: 24 | L149: 38 | M149: 0 | N149: 55 | V149: =connected_load_plot+J149-B149 -> 48 | W149: =connected_load_plot+K149-C149 -> 55 | X149: =connected_load_plot+L149-D149 -> 49 | Y149: =0 -> 0
A150: 2024-04-23T21:55:00 | B150: 18 | C150: 11 | D150: 31 | E150: 0 | F150: 7 | G150: 4 | H150: 24 | I150: 0 | J150: 35 | K150: 17 | L150: 41 | M150: 0 | N150: 60 | V150: =connected_load_plot+J150-B150 -> 59 | W150: =connected_load_plot+K150-C150 -> 48 | X150: =connected_load_plot+L150-D150 -> 52 | Y150: =0 -> 0
A151: 2024-04-23T22:00:00 | B151: 16 | C151: 12 | D151: 31 | E151: 0 | F151: 7 | G151: 3 | H151: 24 | I151: 0 | J151: 29 | K151: 23 | L151: 41 | M151: 0 | N151: 59 | V151: =connected_load_plot+J151-B151 -> 55 | W151: =connected_load_plot+K151-C151 -> 53 | X151: =connected_load_plot+L151-D151 -> 52 | Y151: =0 -> 0
A152: 2024-04-23T22:05:00 | B152: 14 | C152: 11 | D152: 35 | E152: 0 | F152: 8 | G152: 3 | H152: 29 | I152: 0 | J152: 26 | K152: 23 | L152: 47 | M152: 0 | N152: 60 | V152: =connected_load_plot+J152-B152 -> 54 | W152: =connected_load_plot+K152-C152 -> 54 | X152: =connected_load_plot+L152-D152 -> 54 | Y152: =0 -> 0
A153: 2024-04-23T22:10:00 | B153: 13 | C153: 9 | D153: 35 | E153: 0 | F153: 8 | G153: 3 | H153: 28 | I153: 0 | J153: 21 | K153: 16 | L153: 47 | M153: 0 | N153: 57 | V153: =connected_load_plot+J153-B153 -> 50 | W153: =connected_load_plot+K153-C153 -> 49 | X153: =connected_load_plot+L153-D153 -> 54 | Y153: =0 -> 0
A154: 2024-04-23T22:15:00 | B154: 16 | C154: 10 | D154: 35 | E154: 0 | F154: 8 | G154: 3 | H154: 24 | I154: 0 | J154: 26 | K154: 16 | L154: 50 | M154: 0 | N154: 61 | V154: =connected_load_plot+J154-B154 -> 52 | W154: =connected_load_plot+K154-C154 -> 48 | X154: =connected_load_plot+L154-D154 -> 57 | Y154: =0 -> 0
A155: 2024-04-23T22:20:00 | B155: 13 | C155: 10 | D155: 35 | E155: 0 | F155: 8 | G155: 3 | H155: 25 | I155: 0 | J155: 21 | K155: 22 | L155: 52 | M155: 0 | N155: 58 | V155: =connected_load_plot+J155-B155 -> 50 | W155: =connected_load_plot+K155-C155 -> 54 | X155: =connected_load_plot+L155-D155 -> 59 | Y155: =0 -> 0
A156: 2024-04-23T22:25:00 | B156: 14 | C156: 10 | D156: 36 | E156: 0 | F156: 7 | G156: 3 | H156: 26 | I156: 0 | J156: 27 | K156: 23 | L156: 49 | M156: 0 | N156: 60 | V156: =connected_load_plot+J156-B156 -> 55 | W156: =connected_load_plot+K156-C156 -> 55 | X156: =connected_load_plot+L156-D156 -> 55 | Y156: =0 -> 0
A157: 2024-04-23T22:30:00 | B157: 14 | C157: 12 | D157: 36 | E157: 0 | F157: 7 | G157: 3 | H157: 26 | I157: 0 | J157: 26 | K157: 22 | L157: 49 | M157: 0 | N157: 62 | V157: =connected_load_plot+J157-B157 -> 54 | W157: =connected_load_plot+K157-C157 -> 52 | X157: =connected_load_plot+L157-D157 -> 55 | Y157: =0 -> 0
A158: 2024-04-23T22:35:00 | B158: 13 | C158: 15 | D158: 37 | E158: 0 | F158: 7 | G158: 4 | H158: 27 | I158: 0 | J158: 20 | K158: 23 | L158: 46 | M158: 0 | N158: 65 | V158: =connected_load_plot+J158-B158 -> 49 | W158: =connected_load_plot+K158-C158 -> 50 | X158: =connected_load_plot+L158-D158 -> 51 | Y158: =0 -> 0
A159: 2024-04-23T22:40:00 | B159: 14 | C159: 16 | D159: 39 | E159: 0 | F159: 7 | G159: 9 | H159: 33 | I159: 0 | J159: 26 | K159: 30 | L159: 51 | M159: 0 | N159: 69 | V159: =connected_load_plot+J159-B159 -> 54 | W159: =connected_load_plot+K159-C159 -> 56 | X159: =connected_load_plot+L159-D159 -> 54 | Y159: =0 -> 0
A160: 2024-04-23T22:45:00 | B160: 14 | C160: 19 | D160: 36 | E160: 0 | F160: 7 | G160: 10 | H160: 27 | I160: 0 | J160: 20 | K160: 29 | L160: 45 | M160: 0 | N160: 69 | V160: =connected_load_plot+J160-B160 -> 48 | W160: =connected_load_plot+K160-C160 -> 52 | X160: =connected_load_plot+L160-D160 -> 51 | Y160: =0 -> 0
A161: 2024-04-23T22:50:00 | B161: 12 | C161: 17 | D161: 34 | E161: 0 | F161: 6 | G161: 9 | H161: 27 | I161: 0 | J161: 25 | K161: 30 | L161: 44 | M161: 0 | N161: 63 | V161: =connected_load_plot+J161-B161 -> 55 | W161: =connected_load_plot+K161-C161 -> 55 | X161: =connected_load_plot+L161-D161 -> 52 | Y161: =0 -> 0
A162: 2024-04-23T22:55:00 | B162: 12 | C162: 16 | D162: 38 | E162: 0 | F162: 7 | G162: 10 | H162: 33 | I162: 0 | J162: 19 | K162: 23 | L162: 51 | M162: 0 | N162: 66 | V162: =connected_load_plot+J162-B162 -> 49 | W162: =connected_load_plot+K162-C162 -> 49 | X162: =connected_load_plot+L162-D162 -> 55 | Y162: =0 -> 0
A163: 2024-04-23T23:00:00 | B163: 14 | C163: 18 | D163: 38 | E163: 0 | F163: 7 | G163: 9 | H163: 27 | I163: 0 | J163: 25 | K163: 29 | L163: 50 | M163: 0 | N163: 70 | V163: =connected_load_plot+J163-B163 -> 53 | W163: =connected_load_plot+K163-C163 -> 53 | X163: =connected_load_plot+L163-D163 -> 54 | Y163: =0 -> 0
A164: 2024-04-23T23:05:00 | B164: 12 | C164: 18 | D164: 37 | E164: 0 | F164: 7 | G164: 10 | H164: 27 | I164: 0 | J164: 20 | K164: 30 | L164: 45 | M164: 0 | N164: 67 | V164: =connected_load_plot+J164-B164 -> 50 | W164: =connected_load_plot+K164-C164 -> 54 | X164: =connected_load_plot+L164-D164 -> 50 | Y164: =0 -> 0
A165: 2024-04-23T23:10:00 | B165: 18 | C165: 16 | D165: 37 | E165: 0 | F165: 7 | G165: 9 | H165: 27 | I165: 0 | J165: 33 | K165: 29 | L165: 51 | M165: 0 | N165: 71 | V165: =connected_load_plot+J165-B165 -> 57 | W165: =connected_load_plot+K165-C165 -> 55 | X165: =connected_load_plot+L165-D165 -> 56 | Y165: =0 -> 0
A166: 2024-04-23T23:15:00 | B166: 9 | C166: 18 | D166: 35 | E166: 0 | F166: 7 | G166: 10 | H166: 27 | I166: 0 | J166: 14 | K166: 24 | L166: 44 | M166: 0 | N166: 62 | V166: =connected_load_plot+J166-B166 -> 47 | W166: =connected_load_plot+K166-C166 -> 48 | X166: =connected_load_plot+L166-D166 -> 51 | Y166: =0 -> 0
A167: 2024-04-23T23:20:00 | B167: 9 | C167: 18 | D167: 35 | E167: 0 | F167: 6 | G167: 10 | H167: 27 | I167: 0 | J167: 19 | K167: 30 | L167: 44 | M167: 0 | N167: 62 | V167: =connected_load_plot+J167-B167 -> 52 | W167: =connected_load_plot+K167-C167 -> 54 | X167: =connected_load_plot+L167-D167 -> 51 | Y167: =0 -> 0
A168: 2024-04-23T23:25:00 | B168: 9 | C168: 17 | D168: 37 | E168: 0 | F168: 6 | G168: 10 | H168: 27 | I168: 0 | J168: 14 | K168: 30 | L168: 51 | M168: 0 | N168: 63 | V168: =connected_load_plot+J168-B168 -> 47 | W168: =connected_load_plot+K168-C168 -> 55 | X168: =connected_load_plot+L168-D168 -> 56 | Y168: =0 -> 0
A169: 2024-04-23T23:30:00 | B169: 10 | C169: 17 | D169: 36 | E169: 0 | F169: 7 | G169: 10 | H169: 27 | I169: 0 | J169: 20 | K169: 30 | L169: 45 | M169: 0 | N169: 63 | V169: =connected_load_plot+J169-B169 -> 52 | W169: =connected_load_plot+K169-C169 -> 55 | X169: =connected_load_plot+L169-D169 -> 51 | Y169: =0 -> 0
A170: 2024-04-23T23:35:00 | B170: 9 | C170: 16 | D170: 38 | E170: 0 | F170: 6 | G170: 10 | H170: 27 | I170: 0 | J170: 14 | K170: 23 | L170: 50 | M170: 0 | N170: 63 | V170: =connected_load_plot+J170-B170 -> 47 | W170: =connected_load_plot+K170-C170 -> 49 | X170: =connected_load_plot+L170-D170 -> 54 | Y170: =0 -> 0
A171: 2024-04-23T23:40:00 | B171: 11 | C171: 14 | D171: 36 | E171: 0 | F171: 6 | G171: 9 | H171: 26 | I171: 0 | J171: 18 | K171: 18 | L171: 49 | M171: 0 | N171: 61 | V171: =connected_load_plot+J171-B171 -> 49 | W171: =connected_load_plot+K171-C171 -> 46 | X171: =connected_load_plot+L171-D171 -> 55 | Y171: =0 -> 0
A172: 2024-04-23T23:45:00 | B172: 10 | C172: 15 | D172: 32 | E172: 0 | F172: 6 | G172: 9 | H172: 26 | I172: 0 | J172: 18 | K172: 23 | L172: 45 | M172: 0 | N172: 57 | V172: =connected_load_plot+J172-B172 -> 50 | W172: =connected_load_plot+K172-C172 -> 50 | X172: =connected_load_plot+L172-D172 -> 55 | Y172: =0 -> 0
A173: 2024-04-23T23:50:00 | B173: 10 | C173: 12 | D173: 34 | E173: 0 | F173: 6 | G173: 8 | H173: 26 | I173: 0 | J173: 21 | K173: 23 | L173: 43 | M173: 0 | N173: 56 | V173: =connected_load_plot+J173-B173 -> 53 | W173: =connected_load_plot+K173-C173 -> 53 | X173: =connected_load_plot+L173-D173 -> 51 | Y173: =0 -> 0
A174: 2024-04-23T23:55:00 | B174: 10 | C174: 12 | D174: 41 | E174: 0 | F174: 6 | G174: 8 | H174: 26 | I174: 0 | J174: 25 | K174: 22 | L174: 54 | M174: 0 | N174: 63 | V174: =connected_load_plot+J174-B174 -> 57 | W174: =connected_load_plot+K174-C174 -> 52 | X174: =connected_load_plot+L174-D174 -> 55 | Y174: =0 -> 0
A175: 2024-04-24 | B175: 10 | C175: 12 | D175: 40 | E175: 0 | F175: 6 | G175: 8 | H175: 27 | I175: 0 | J175: 14 | K175: 15 | L175: 51 | M175: 0 | N175: 62 | V175: =connected_load_plot+J175-B175 -> 46 | W175: =connected_load_plot+K175-C175 -> 45 | X175: =connected_load_plot+L175-D175 -> 53 | Y175: =0 -> 0
A176: 2024-04-24T00:05:00 | B176: 10 | C176: 13 | D176: 35 | E176: 0 | F176: 6 | G176: 8 | H176: 25 | I176: 0 | J176: 19 | K176: 22 | L176: 44 | M176: 0 | N176: 58 | V176: =connected_load_plot+J176-B176 -> 51 | W176: =connected_load_plot+K176-C176 -> 51 | X176: =connected_load_plot+L176-D176 -> 51 | Y176: =0 -> 0
A177: 2024-04-24T00:10:00 | B177: 8 | C177: 12 | D177: 37 | E177: 0 | F177: 6 | G177: 8 | H177: 26 | I177: 0 | J177: 13 | K177: 21 | L177: 48 | M177: 0 | N177: 57 | V177: =connected_load_plot+J177-B177 -> 47 | W177: =connected_load_plot+K177-C177 -> 51 | X177: =connected_load_plot+L177-D177 -> 53 | Y177: =0 -> 0
A178: 2024-04-24T00:15:00 | B178: 9 | C178: 7 | D178: 34 | E178: 0 | F178: 6 | G178: 3 | H178: 25 | I178: 0 | J178: 18 | K178: 15 | L178: 45 | M178: 0 | N178: 50 | V178: =connected_load_plot+J178-B178 -> 51 | W178: =connected_load_plot+K178-C178 -> 50 | X178: =connected_load_plot+L178-D178 -> 53 | Y178: =0 -> 0
A179: 2024-04-24T00:20:00 | B179: 8 | C179: 7 | D179: 36 | E179: 0 | F179: 5 | G179: 3 | H179: 25 | I179: 0 | J179: 13 | K179: 10 | L179: 49 | M179: 0 | N179: 51 | V179: =connected_load_plot+J179-B179 -> 47 | W179: =connected_load_plot+K179-C179 -> 45 | X179: =connected_load_plot+L179-D179 -> 55 | Y179: =0 -> 0
A180: 2024-04-24T00:25:00 | B180: 11 | C180: 8 | D180: 33 | E180: 0 | F180: 6 | G180: 3 | H180: 25 | I180: 0 | J180: 20 | K180: 16 | L180: 43 | M180: 0 | N180: 52 | V180: =connected_load_plot+J180-B180 -> 51 | W180: =connected_load_plot+K180-C180 -> 50 | X180: =connected_load_plot+L180-D180 -> 52 | Y180: =0 -> 0
A181: 2024-04-24T00:30:00 | B181: 11 | C181: 8 | D181: 38 | E181: 0 | F181: 6 | G181: 3 | H181: 30 | I181: 0 | J181: 18 | K181: 16 | L181: 49 | M181: 0 | N181: 57 | V181: =connected_load_plot+J181-B181 -> 49 | W181: =connected_load_plot+K181-C181 -> 50 | X181: =connected_load_plot+L181-D181 -> 53 | Y181: =0 -> 0
A182: 2024-04-24T00:35:00 | B182: 8 | C182: 7 | D182: 37 | E182: 0 | F182: 6 | G182: 3 | H182: 26 | I182: 0 | J182: 18 | K182: 10 | L182: 50 | M182: 0 | N182: 52 | V182: =connected_load_plot+J182-B182 -> 52 | W182: =connected_load_plot+K182-C182 -> 45 | X182: =connected_load_plot+L182-D182 -> 55 | Y182: =0 -> 0
A183: 2024-04-24T00:40:00 | B183: 9 | C183: 7 | D183: 38 | E183: 0 | F183: 5 | G183: 3 | H183: 30 | I183: 0 | J183: 18 | K183: 10 | L183: 50 | M183: 0 | N183: 54 | V183: =connected_load_plot+J183-B183 -> 51 | W183: =connected_load_plot+K183-C183 -> 45 | X183: =connected_load_plot+L183-D183 -> 54 | Y183: =0 -> 0
A184: 2024-04-24T00:45:00 | B184: 9 | C184: 8 | D184: 34 | E184: 0 | F184: 6 | G184: 3 | H184: 26 | I184: 0 | J184: 18 | K184: 16 | L184: 49 | M184: 0 | N184: 51 | V184: =connected_load_plot+J184-B184 -> 51 | W184: =connected_load_plot+K184-C184 -> 50 | X184: =connected_load_plot+L184-D184 -> 57 | Y184: =0 -> 0
A185: 2024-04-24T00:50:00 | B185: 10 | C185: 9 | D185: 38 | E185: 0 | F185: 6 | G185: 3 | H185: 27 | I185: 0 | J185: 19 | K185: 16 | L185: 51 | M185: 0 | N185: 57 | V185: =connected_load_plot+J185-B185 -> 51 | W185: =connected_load_plot+K185-C185 -> 49 | X185: =connected_load_plot+L185-D185 -> 55 | Y185: =0 -> 0
A186: 2024-04-24T00:55:00 | B186: 9 | C186: 7 | D186: 37 | E186: 0 | F186: 6 | G186: 3 | H186: 27 | I186: 0 | J186: 13 | K186: 10 | L186: 51 | M186: 0 | N186: 53 | V186: =connected_load_plot+J186-B186 -> 46 | W186: =connected_load_plot+K186-C186 -> 45 | X186: =connected_load_plot+L186-D186 -> 56 | Y186: =0 -> 0
A187: 2024-04-24T01:00:00 | B187: 8 | C187: 7 | D187: 38 | E187: 0 | F187: 5 | G187: 3 | H187: 27 | I187: 0 | J187: 16 | K187: 10 | L187: 51 | M187: 0 | N187: 53 | V187: =connected_load_plot+J187-B187 -> 50 | W187: =connected_load_plot+K187-C187 -> 45 | X187: =connected_load_plot+L187-D187 -> 55 | Y187: =0 -> 0
A188: 2024-04-24T01:05:00 | B188: 9 | C188: 8 | D188: 36 | E188: 0 | F188: 5 | G188: 3 | H188: 27 | I188: 0 | J188: 12 | K188: 16 | L188: 47 | M188: 0 | N188: 53 | V188: =connected_load_plot+J188-B188 -> 45 | W188: =connected_load_plot+K188-C188 -> 50 | X188: =connected_load_plot+L188-D188 -> 53 | Y188: =0 -> 0
A189: 2024-04-24T01:10:00 | B189: 10 | C189: 9 | D189: 39 | E189: 0 | F189: 5 | G189: 3 | H189: 26 | I189: 0 | J189: 18 | K189: 17 | L189: 49 | M189: 0 | N189: 58 | V189: =connected_load_plot+J189-B189 -> 50 | W189: =connected_load_plot+K189-C189 -> 50 | X189: =connected_load_plot+L189-D189 -> 52 | Y189: =0 -> 0
A190: 2024-04-24T01:15:00 | B190: 8 | C190: 8 | D190: 37 | E190: 0 | F190: 5 | G190: 3 | H190: 27 | I190: 0 | J190: 13 | K190: 16 | L190: 50 | M190: 0 | N190: 53 | V190: =connected_load_plot+J190-B190 -> 47 | W190: =connected_load_plot+K190-C190 -> 50 | X190: =connected_load_plot+L190-D190 -> 55 | Y190: =0 -> 0
A191: 2024-04-24T01:20:00 | B191: 9 | C191: 8 | D191: 40 | E191: 0 | F191: 5 | G191: 3 | H191: 33 | I191: 0 | J191: 18 | K191: 16 | L191: 55 | M191: 0 | N191: 57 | V191: =connected_load_plot+J191-B191 -> 51 | W191: =connected_load_plot+K191-C191 -> 50 | X191: =connected_load_plot+L191-D191 -> 57 | Y191: =0 -> 0
A192: 2024-04-24T01:25:00 | B192: 16 | C192: 7 | D192: 35 | E192: 0 | F192: 6 | G192: 2 | H192: 26 | I192: 0 | J192: 22 | K192: 11 | L192: 48 | M192: 0 | N192: 58 | V192: =connected_load_plot+J192-B192 -> 48 | W192: =connected_load_plot+K192-C192 -> 46 | X192: =connected_load_plot+L192-D192 -> 55 | Y192: =0 -> 0
A193: 2024-04-24T01:30:00 | B193: 10 | C193: 8 | D193: 37 | E193: 0 | F193: 6 | G193: 2 | H193: 27 | I193: 0 | J193: 21 | K193: 15 | L193: 44 | M193: 0 | N193: 55 | V193: =connected_load_plot+J193-B193 -> 53 | W193: =connected_load_plot+K193-C193 -> 49 | X193: =connected_load_plot+L193-D193 -> 49 | Y193: =0 -> 0
A194: 2024-04-24T01:35:00 | B194: 10 | C194: 7 | D194: 34 | E194: 0 | F194: 6 | G194: 2 | H194: 26 | I194: 0 | J194: 18 | K194: 15 | L194: 45 | M194: 0 | N194: 51 | V194: =connected_load_plot+J194-B194 -> 50 | W194: =connected_load_plot+K194-C194 -> 50 | X194: =connected_load_plot+L194-D194 -> 53 | Y194: =0 -> 0
A195: 2024-04-24T01:40:00 | B195: 10 | C195: 7 | D195: 38 | E195: 0 | F195: 6 | G195: 2 | H195: 25 | I195: 0 | J195: 18 | K195: 15 | L195: 49 | M195: 0 | N195: =SUM(B195:D195) -> 55 | V195: =connected_load_plot+J195-B195 -> 50 | W195: =connected_load_plot+K195-C195 -> 50 | X195: =connected_load_plot+L195-D195 -> 53 | Y195: =0 -> 0
A196: 2024-04-24T01:45:00 | B196: 9 | C196: 8 | D196: 34 | E196: 0 | F196: 6 | G196: 2 | H196: 25 | I196: 0 | J196: 25 | K196: 15 | L196: 45 | M196: 0 | N196: 51 | V196: =connected_load_plot+J196-B196 -> 58 | W196: =connected_load_plot+K196-C196 -> 49 | X196: =connected_load_plot+L196-D196 -> 53 | Y196: =0 -> 0
A197: 2024-04-24T01:50:00 | B197: 10 | C197: 8 | D197: 38 | E197: 0 | F197: 6 | G197: 2 | H197: 30 | I197: 0 | J197: 14 | K197: 15 | L197: 49 | M197: 0 | N197: 56 | V197: =connected_load_plot+J197-B197 -> 46 | W197: =connected_load_plot+K197-C197 -> 49 | X197: =connected_load_plot+L197-D197 -> 53 | Y197: =0 -> 0
A198: 2024-04-24T01:55:00 | B198: 11 | C198: 7 | D198: 36 | E198: 0 | F198: 5 | G198: 2 | H198: 32 | I198: 0 | J198: 18 | K198: 15 | L198: 46 | M198: 0 | N198: 54 | V198: =connected_load_plot+J198-B198 -> 49 | W198: =connected_load_plot+K198-C198 -> 50 | X198: =connected_load_plot+L198-D198 -> 52 | Y198: =0 -> 0
A199: 2024-04-24T02:00:00 | B199: 8 | C199: 7 | D199: 39 | E199: 0 | F199: 5 | G199: 3 | H199: 27 | I199: 0 | J199: 13 | K199: 10 | L199: 48 | M199: 0 | N199: 54 | V199: =connected_load_plot+J199-B199 -> 47 | W199: =connected_load_plot+K199-C199 -> 45 | X199: =connected_load_plot+L199-D199 -> 51 | Y199: =0 -> 0
A200: 2024-04-24T02:05:00 | B200: 9 | C200: 8 | D200: 36 | E200: 0 | F200: 5 | G200: 3 | H200: 27 | I200: 0 | J200: 18 | K200: 16 | L200: 46 | M200: 0 | N200: 53 | V200: =connected_load_plot+J200-B200 -> 51 | W200: =connected_load_plot+K200-C200 -> 50 | X200: =connected_load_plot+L200-D200 -> 52 | Y200: =0 -> 0
... 1886 more rows

Sheet NEC (hidden)
B1: Circuit Name | C1: =title -> 0
A2: A | B2: Location | C2: =location1 -> 0
B3: Panel Rating | C3: =panel_capacity -> 200
A4: B | B4: Circuit Breaker Rating | C4: =panel_capacity -> 200
A5: C | B5: =temp_rating_desc -> 90% of Rating (40C) | C5: =panel_capacity*temp_rating_pc/100 -> 180
A6: V | B6: Nominal Voltage (Volts) | C6: =nominal_voltage -> 230
C7: phase | F7: based on highest loaded phase
C8: A | D8: B | E8: C | J8: to plot | K8: (see nec_phase_sel on Control tab)
B9: Demand Study
A10: D | B10: Current Demand (CD) | C10: ='NEC Report Template'!I40 -> 27 | D10: ='NEC Report Template'!J40 -> 28 | E10: ='NEC Report Template'!K40 -> 42 | F10: =MAX(C10:E10) -> 42 | G10: A | J10: =INDEX('NEC Report Template'!I40:L40,1,nec_phase_sel) -> 42
A11: E | B11: Maximum Apparent Power | C11: =C10*$C6/1000 -> 6.21 | D11: =D10*$C6/1000 -> 6.44 | E11: =E10*$C6/1000 -> 9.66 | F11: =MAX(C11:E11) -> 9.66 | G11: kVA | H11: E = D x V /1000
A12: S | B12: Maximum Demand (load) | C12: =SUM(C11:E11) -> 22.31 | G12: kVA | H12: S = Sum(E)
A13: F | B13: ='NEC Report Template'!B43 -> Seasonal Adjustments | C13: =IF(seasonal_en,seasonal_adjust,0) -> 0 | G13: A
A14: H | B14: ='NEC Report Template'!B44 -> Total Current Demand | C14: =C10+IF(seasonal_en,seasonal_adjust) -> 27 | D14: =D10+IF(seasonal_en,seasonal_adjust) -> 28 | E14: =E10+IF(seasonal_en,seasonal_adjust) -> 42 | F14: =MAX(C14:E14) -> 42 | G14: A | H14: H = D + F | J14: =INDEX(C14:F14,1,nec_phase_sel) -> 42
A15: L | B15: Available Capacity | C15: =nec_main_breaker-nec_connected_load_a -> 173 | D15: =nec_main_breaker-nec_connected_load_b -> 172 | E15: =nec_main_breaker-nec_connected_load_c -> 158 | F15: =MIN(C15:E15) -> 158 | G15: A | H15: L = B - H | J15: =INDEX($C$14:$F$14,1,nec_phase_sel) -> 42
A16: T | B16: Free Capacity | C16: =nominal_voltage*SUM(C15:E15)/1000 -> 115.69 | G16: kVA | H16: T = V x Sum(L)/1000
B17: Plan/Projected Demand Analysis
A18: M | B18: Planned Additional Demand | C18: =IF(planned_load_en,planned_load,0) -> 0 | G18: A | J18: wait until the Wizard step that includes the Projected Load box before including Projected Load in the CONNECTED LOAD plot
A19: N | B19: Projected Current Demand w/addition | C19: =nec_connected_load_a+$C$18 -> 27 | D19: =nec_connected_load_b+$C$18 -> 28 | E19: =nec_connected_load_c+$C$18 -> 42 | F19: =MAX(C19:E19) -> 42 | G19: A | H19: N = H + M | J19: =INDEX(C19:F19,1,nec_phase_sel) -> 42
A20: O | B20: Projected Remaining Capacity | C20: =pcbr-C19 -> 173 | D20: =pcbr-D19 -> 172 | E20: =pcbr-E19 -> 158 | F20: =MIN(C20:E20) -> 158 | G20: A | H20: O = B - N
B24: NB. in general, the main formulae for the calcuations in this table should be on the "NEC Report Template" sheet
B25: and the values on this sheet should be copies of (or make reference to) cells on that sheet (not the other way around, otherwise the generated reports will have links to this generator)
B30: Total Capacity (based on 100% of breaker rating and specified Voltage) | C30: =nec_main_breaker*C6*3/1000 -> 138 | G30: kVA
B31: Free Capacity (excluding seasonal) | C31: =C30-C12 -> 115.69 | G31: kVA
B32: Total Available Current Capacity (excluding seasonal) | C32: =3*nec_main_breaker-SUM(C10:E10) -> 503 | G32: A
B33: Free Capacity from currents (excluding seasonal) | C33: =C32*C6/1000 -> 115.69 | G33: kVA
B35: Free Capacity (including seasonal) | C35: =nominal_voltage*SUM(C15:E15)/1000 -> 115.69 | G35: kVA
B36: Capacity for seasonal adjustment | C36: =C33-C35 -> 0 | G36: kVA
